{"text_format":"1","workbook":"xlsx","n_sheets":12,"sheets":["Inicio","Listas desplegab","Modulo I","Base Dat Mod I","Modulo II","Base Dat Mod II","Modulo III","Base Dat Mod III","Consulta Mod I y III","Consulta Mod II","Graficos Mod I y III","Graficos Mod II"],"not_rendered":{"charts":3,"images":39,"macros":1,"external_links":0,"defined_names":7,"comments":0,"pivot_tables":3},"unopened":[],"bounds":{"document_bytes":16777216,"sheet_cells":100000,"rows_first":2000,"rows_last":500,"rows_between":2000,"halvings":0,"cell_chars":16384,"cell_head_chars":4096},"cells_cut":0,"cells_raw":0,"read":"whole","date_system":"1900"}

{"sheet":"Inicio","index":0,"n_rows":27,"n_cols":20,"rows_kept":27,"cut":false,"hidden":false,"merged":[[5,3,6,9],[26,3,26,9],[1,3,3,3],[1,4,1,7],[2,4,3,7],[3,8,3,9]]}
[]
[null,null,null,null,"PROCESO PROMOCIÓN Y PREVENCIÓN",null,null,null,"F1.MO12.PP ","2017-02-17"]
[null,null,null,null,"FICHA DE CARACTERIZACIÓN SOCIO-FAMILIAR",null,null,null,"Versión 3","Pagina 1 de 1"]
[null,null,null,null,null,null,null,null,"Clasificación de la Información Pública"]
[null,null,null,null,null,null,null,null,null,null,null,null,null,null,null,null,null,null,null,"ATENCIÓN A NIÑOS HASTA LOS 3 AÑOS EN ESTABLECIMIENTOS DE RECLUSIÓN A MUJERES INTEGRAL"]
[null,null,null,null,null,null,null,null,null,null,null,null,null,null,null,null,null,null,null,"CDI CON ARRIENDO - INSTITUCIONAL INTEGRAL"]
[null,null,null,null,null,null,null,null,null,null,null,null,null,null,null,null,null,null,null,"CDI SIN ARRIENDO -  INSTITUCIONAL INTEGRAL"]
[null,null,null,null,null,null,null,null,null,null,null,null,null,null,null,null,null,null,null,"DESARROLLO INFANTIL EN MEDIO FAMILIAR - FAMILIAR INTEGRAL"]
[null,null,null,null,null,null,null,null,null,null,null,null,null,null,null,null,null,null,null,"HCB  AGRUPADOS -INSTITUCIONAL TRADICIONAL"]
[null,null,null,null,null,null,null,null,null,null,null,null,null,null,null,null,null,null,null,"HCB FAMI-FAMILIAR TRADICIONAL"]
[null,null,null,null,null,null,null,null,null,null,null,null,null,null,null,null,null,null,null,"HCB INTEGRAL -COMUNITARIO  INTEGRAL"]
[null,null,null,null,null,null,null,null,null,null,null,null,null,null,null,null,null,null,null,"HCB TRADICIONAL- COMUNITARIO (T)"]
[null,null,null,null,null,null,null,null,null,null,null,null,null,null,null,null,null,null,null,"HOGARES EMPRESARIALES - INSTITUCIONAL INTEGRAL"]
[null,null,null,null,null,null,null,null,null,null,null,null,null,null,null,null,null,null,null,"HOGARES INFANTILES - INSTITUCIONAL INTEGRAL"]
[null,null,null,null,null,null,null,null,null,null,null,null,null,null,null,null,null,null,null,"HOGARES MULTIPLES - INSTITUCIONAL INTEGRAL"]
[null,null,null,null,null,null,null,null,null,null,null,null,null,null,null,null,null,null,null,"JARDINES SOCIALES - INSTITUCIONAL INTEGRAL"]
[null,null,null,null,null,null,null,null,null,null,null,null,null,null,null,null,null,null,null,"LACTANTES Y PREESCOLARES - INSTITUCIONAL INTEGRAL"]
[null,null,null,null,null,null,null,null,null,null,null,null,null,null,null,null,null,null,null,"SERVICIO ESPECIAL PARA LA PRIMERA INFANCIA  - COMUNITARIO INTEGRAL"]
[null,null,null,null,null,null,null,null,null,null,null,null,null,null,null,null,null,null,null,"SERVICIO ESPECIAL PARA LA PRIMERA INFANCIA - FAMILIAR INTEGRAL"]
[null,null,null,null,null,null,null,null,null,null,null,null,null,null,null,null,null,null,null,"SERVICIO ESPECIAL PARA LA PRIMERA INFANCIA - INSTITUCIONAL INTEGRAL"]
[null,null,null,null,null,null,null,null,null,null,null,null,null,null,null,null,null,null,null,"ATENCIÓN PROPIA E INTERCULTURAL"]
[null,null,null,null,null,null,null,null,null,null,null,null,null,null,null,null,null,null,null,"DESARROLLO INFANTIL EN MEDIO FAMILIAR CON ARRIENDO - FAMILIAR INTEGRAL"]
[null,null,null,null,null,null,null,null,null,null,null,null,null,null,null,null,null,null,null,"GRADO TRANSICIÓN CON ATENCIÓN INTEGRAL"]
[]
[]
[]
[null,null,null,"IMPORTANTE: Para guardar la fidelidad de la información, agradecemos no alterar ni modificar este archivo. Las modificaciones o alteraciones totales o parciales pueden afectar los resultados de este ejercicio de caracterización que se encuentra directamente relacionado con el Sistema de Información de Primera Infancia. Es importante leer el instructivo de esta ficha, con el fin de asegurar el oportuno diligenciamiento de la información."]

{"sheet":"Listas desplegab","index":1,"n_rows":102,"n_cols":18,"rows_kept":102,"cut":false,"hidden":true,"merged":[[9,0,9,2]]}
["Etnico","Decisión","Rangos de edad","No de hijos","Semanas de gestación","Estado Civil de la madre gestante","Edad","Nivel escolaridad","Tipo de vivienda","Tipo de tenencia vivienda","No de personas, nucleo familiar","Meses","Tratamiento del agua","Inodoro","Permanencia salida unidad","Otra decision","Tipo de documentacion Niña /Niño","Tipo de documentacion Madre"]
["Negro","SI","0 a 6 meses",1,1,"Soltera","Menor a 1 año","Ninguno","Casa","Propia",1,1,"Ninguno","Exclusivo para el nucleo familiar","Padre","SI","Registro Civil","Tarjeta de Identidad"]
["Afrocolombiano","NO","6 a 12 meses",2,2,"Casada",1,"Primaria","Cambuche","Familiar",2,2,"La hierven","Compartido con otros nucleos","Madre","NO","Tarjeta de Identidad","Cedula de Ciudadania"]
["Indigena",null,"1 año y 1 día a 2 años",3,3,"Separada",2,"Secundaria","Apartamento","En arriendo o subarriendo",3,3,"La purifican con cloro",null,"Padrasto/ Madrasta","No aplica","Sin documento","Sin documento"]
["Rrom/Gitano",null,"2 años y 1 día a 3 años",4,4,"Unión Marital de hecho",3,"Técnico","Vivienda Indigena","Ocupante de hecho o poseedor",4,4,"Utilizan filtro",null,"Hermano(a)"]
["Raizal del archipielago de San Andres,Providencia y Santa Catalina",null,"3 años y 1 día a 4 años",5,5,"Viuda",4,"Tecnológico","Habitación","En concesión",5,5,"La decantan",null,"Tio(a)"]
["Palenquero",null,"4 años y 1 día a 5 años, 11 meses y 29 días",6,6,null,5,"Universitario","Albergue","Titulación comunitaria",6,6,"Pastillas purificadoras",null,"Primo(a)",null,null,"Esposo"]
["No se autoreconoce en ninguno de los anteriores",null,null,7,7,null,6,"Postgrado","Finca",null,7,7,"Otra",null,"Pariente",null,"No aplica","Pareja"]
[null,null,null,8,8,null,7,null,"Inquilinato",null,8,8,null,null,"Empleada/Niñera",null,"Madre","Madre"]
["Modulo 1",null,null,9,9,null,8,null,null,null,9,9,null,null,"Padrino/Madrina",null,"Padre","Padre"]
[null,null,null,10,10,null,9,null,null,null,10,10,null,null,"Abuelo/Abuela",null,"Madrasta/Padrasto","Madrasta/Padrasto"]
[null,null,null,11,11,null,10,null,null,null,11,11,null,null,"Sobrino(a)",null,"Madre Sustituta","Madre Sustituta"]
[null,null,null,12,12,null,11,null,null,null,12,12,null,null,"Cuñado(a)",null,"Hermano(a)","Hermano(a)"]
[null,null,null,13,13,null,12,null,null,null,13,null,null,null,"Amigo(a)",null,"Primo(a)","Primo(a)"]
[null,null,null,14,14,null,13,null,null,null,14,null,null,null,"Vecino(a)",null,"Pariente","Pariente"]
[null,null,null,15,15,null,14,null,null,null,15,null,null,null,"Sola(o)",null,"Empleada/Niñera","Empleada/Niñera"]
[null,null,null,16,16,null,15,null,null,null,16,null,null,null,"No aplica",null,"Padrino/Madrina","Padrino/Madrina"]
[null,null,null,17,17,null,16,null,null,null,17,null,null,null,null,null,"Abuelo/Abuela","Abuelo/Abuela"]
[null,null,null,18,18,null,17,null,null,null,18,null,null,null,null,null,"Sobrino(a)","Sobrino(a)"]
[null,null,null,19,19,null,18,null,null,null,19,null,null,null,null,null,"Cuñado(a)","Cuñado(a)"]
[null,null,null,20,20,null,19,null,null,null,20,null,null,null,null,null,"Amigo(a)","Amigo(a)"]
[null,null,null,null,21,null,20,null,null,null,21,null,null,null,null,null,"Vecino(a)","Vecino(a)"]
[null,null,null,null,22,null,21,null,null,null,22]
[null,null,null,null,23,null,22,null,null,null,23]
[null,null,null,null,24,null,23,null,null,null,24]
[null,null,null,null,25,null,24,null,null,null,25]
[null,null,null,null,26,null,25,null,null,null,26]
[null,null,null,null,27,null,26,null,null,null,27]
[null,null,null,null,28,null,27,null,null,null,28]
[null,null,null,null,29,null,28,null,null,null,29]
[null,null,null,null,30,null,29,null,null,null,30]
[null,null,null,null,31,null,30]
[null,null,null,null,32,null,31]
[null,null,null,null,33,null,32]
[null,null,null,null,34,null,33]
[null,null,null,null,35,null,34]
[null,null,null,null,36,null,35]
[null,null,null,null,37,null,36]
[null,null,null,null,38,null,37]
[null,null,null,null,39,null,38]
[null,null,null,null,40,null,39]
[null,null,null,null,null,null,40]
[null,null,null,null,null,null,41]
[null,null,null,null,null,null,42]
[null,null,null,null,null,null,43]
[null,null,null,null,null,null,44]
[null,null,null,null,null,null,45]
[null,null,null,null,null,null,46]
[null,null,null,null,null,null,47]
[null,null,null,null,null,null,48]
[null,null,null,null,null,null,49]
[null,null,null,null,null,null,50]
[null,null,null,null,null,null,51]
[null,null,null,null,null,null,52]
[null,null,null,null,null,null,53]
[null,null,null,null,null,null,54]
[null,null,null,null,null,null,55]
[null,null,null,null,null,null,56]
[null,null,null,null,null,null,57]
[null,null,null,null,null,null,58]
[null,null,null,null,null,null,59]
[null,null,null,null,null,null,60]
[null,null,null,null,null,null,61]
[null,null,null,null,null,null,62]
[null,null,null,null,null,null,63]
[null,null,null,null,null,null,64]
[null,null,null,null,null,null,65]
[null,null,null,null,null,null,66]
[null,null,null,null,null,null,67]
[null,null,null,null,null,null,68]
[null,null,null,null,null,null,69]
[null,null,null,null,null,null,70]
[null,null,null,null,null,null,71]
[null,null,null,null,null,null,72]
[null,null,null,null,null,null,73]
[null,null,null,null,null,null,74]
[null,null,null,null,null,null,75]
[null,null,null,null,null,null,76]
[null,null,null,null,null,null,77]
[null,null,null,null,null,null,78]
[null,null,null,null,null,null,79]
[null,null,null,null,null,null,80]
[null,null,null,null,null,null,81]
[null,null,null,null,null,null,82]
[null,null,null,null,null,null,83]
[null,null,null,null,null,null,84]
[null,null,null,null,null,null,85]
[null,null,null,null,null,null,86]
[null,null,null,null,null,null,87]
[null,null,null,null,null,null,88]
[null,null,null,null,null,null,89]
[null,null,null,null,null,null,90]
[null,null,null,null,null,null,91]
[null,null,null,null,null,null,92]
[null,null,null,null,null,null,93]
[null,null,null,null,null,null,94]
[null,null,null,null,null,null,95]
[null,null,null,null,null,null,96]
[null,null,null,null,null,null,97]
[null,null,null,null,null,null,98]
[null,null,null,null,null,null,99]
[null,null,null,null,null,null,100]

{"sheet":"Modulo I","index":2,"n_rows":113,"n_cols":14,"rows_kept":113,"cut":false,"hidden":false,"merged":[[93,5,93,7],[100,6,100,8],[48,6,48,8],[33,6,33,8],[95,5,98,5],[67,4,67,5],[77,4,77,5],[42,2,42,4],[36,6,36,8],[38,6,38,8],[38,2,38,4],[43,2,43,4],[58,2,58,5],[47,2,47,4],[48,2,48,4],[56,4,56,6],[83,6,83,8],[35,2,35,4],[36,2,36,4],[37,2,37,4],[54,2,54,5],[51,4,51,8],[52,4,52,8],[39,2,39,4],[40,2,40,4],[41,2,41,4],[33,2,33,4],[32,2,32,4],[25,2,25,3],[45,1,45,8],[43,6,43,8],[41,6,41,8],[34,6,34,8],[34,2,34,4],[1,1,1,8],[4,5,4,6],[6,1,6,8],[12,1,12,8],[30,1,30,8],[13,2,13,3],[22,6,22,8],[2,1,2,8],[19,5,19,7],[21,2,21,4],[22,2,22,4],[23,2,23,4],[116,1,119,8],[108,2,108,6],[61,2,61,5],[87,2,87,5],[94,2,94,6],[102,2,102,5],[100,2,100,4],[101,2,101,4],[83,2,83,4],[85,1,85,8],[70,2,70,5],[80,2,80,5],[103,4,106,5],[82,2,82,4],[71,2,71,5],[88,5,91,5]]}
[]
[]
[]
[]
[null,null,null,null,null,"Fecha de diligenciamiento Inicial ",null,{"$f":"TODAY()","v":"2017-02-20"}]
[]
[null,"INFORMACIÓN DE LA UNIDAD DE SERVICIO"]
[]
[null,null,"Nombre de la Unidad de Servicio-UDS (a la que asiste la niña o el niño)*"]
[null,null,"Codigo de la UDS en Cuentame*"]
[null,null,"Servicio Prestado en la UDS*"]
[]
[null,"INFORMACIÓN DEL USUARIO (NIÑA/NIÑO)"]
[]
[null,null,"Primer Nombre*"]
[null,null,"Segundo Nombre"]
[null,null,"Primer Apellido*"]
[null,null,"Segundo Apellido",null,null,{"$f":"IFERROR(VLOOKUP(D20,'Base Dat Mod I'!$A$8:$A$998,1,TRUE),\"N/A\")","v":"N/A"}]
[null,null,"Tipo de Documento de Identidad*",null,null,"Verificar duplicidad de documento"]
[null,null,"Diligenciar el NUIP*",null,null,{"$f":"IF(D20=F18,\"EXISTE DUPLICIDAD DE LA INFORMACIÓN\",IF(D20=\"\",\"PENDIENTE\",\"NUEVO NUIP\"))","v":"PENDIENTE"}]
[]
[null,null,"Grupo étnico con el que se autoreconoce la niña o el niño*"]
[null,null,"Si el Nucleo familiar del beneficiario se reconoce como miembro de un grupo étnico, Indique a que comunidad, resguardo o territorio colectivo pertenece*",null,null,null,"Si no pertenece a un grupo étnico, escriba\n No Aplica"]
[null,null,"¿El beneficiario habla la lengua nativa del grupo étnico al que pertenece?*"]
[null,null,null,null,null,null,null,null,null,null,null,null,null,"Madre"]
[null,null,"Datos de contacto del Adulto Responsable o Acudiente",null,null,null,null,null,null,null,null,null,null,"Padre"]
[null,null,"Nombres y apellidos*",null,null,null,null,null,null,null,null,null,null,"Madrasta/Padrasto"]
[null,null,"Parentesco*",null,null,null,null,null,null,null,null,null,null,"Madre Sustituta"]
[null,null,"Numero de contacto en caso de emergencia*",null,null,null,null,null,null,null,null,null,null,"Hermano(a)"]
[null,null,null,null,null,null,null,null,null,null,null,null,null,"Primo(a)"]
[null,"SALUD",null,null,null,null,null,null,null,null,null,null,null,"Pariente"]
[null,null,null,null,null,null,null,null,null,null,null,null,null,"Empleada/Niñera"]
[null,null,"Se encuentra afiliado al Sistema General de Seguridad Social en Salud*",null,null,null,null,null,null,null,null,null,null,"Padrino/Madrina"]
[null,null,"En caso de no estar afiliado al Sistema General de Seguridad Social en Salud ¿Cuál es la razon?*",null,null,null,"Si esta afiliado, escriba\n No Aplica",null,null,null,null,null,null,"Abuelo/Abuela"]
[null,null,"Nombre de la Entidad Promotora de Salud a la que se encuentra afiliado*",null,null,null,"Si NO esta afiliado, escriba\n No Aplica",null,null,null,null,null,null,"Sobrino(a)"]
[null,null,"¿La niña o niño cuenta con el carné de vacunación actualizado?*",null,null,null,null,null,null,null,null,null,null,"Cuñado(a)"]
[null,null,"En caso de que no contar con el carné de vacunación al dia según la edad de la niña o el niño, ¿Cuál es la razón?*",null,null,null,"Si cuenta con carnet de vacunación, escriba\n No Aplica",null,null,null,null,null,null,"Amigo(a)"]
[null,null,"Si la niña o el niño es mayor de un (1) año, ¿Ha asistido a controles de salud oral?*",null,null,null,null,null,null,null,null,null,null,"Vecino(a)"]
[null,null,"En caso de no haber asistido a controles de salud oral, ¿Cuál es el motivo por el cual no ha asistido a los controles?*",null,null,null,"Si ha asistido a controles de salud oral, escriba\n No Aplica"]
[null,null,"La niña o niño menor de cuatro (4) años ¿Ha recibido valoración oftalmológica?*"]
[null,null,"La niña o niño menor de cinco(5) años ¿Ha recibido valoración auditiva?*"]
[null,null,"Si la niña o el niño ha asistido a consultas médicas distintas a las de crecimiento y desarrollo (urgencias o consulta externa), indique el motivo de la  consulta*",null,null,null,"Si no ha asistido a consultas medicas distintasl, escriba\n No Aplica"]
[null,null,"¿La niña o niño es alérgico a algún medicamento?*"]
[null,null,"Si la respuesta anterior es SI, indique el medicamento al cual es alérgico*",null,null,null,"Si no es alergico a ningun medicamento, escriba\n No Aplica"]
[]
[null,"NUTRICIÓN Y MEDIDAS ANTROPOMETRICAS"]
[]
[null,null,"La niña o niño cuenta con el carné actualizado de crecimiento y desarrollo*"]
[null,null,"Si la niña o niño asiste a controles de crecimiento y desarrollo, indique la fecha del último control*",null,null,null,"Dia/Mes/Año\n(Ejemplo 01/01/2016)"]
[]
[null,null,"Rango de edad actual*"]
[null,null,"Peso al nacer de la niña o el niño*",null,"Gramos ( Mínimo 1000 - Máximo 5000). \nEn caso de que el beneficiario pertenezca a una comunidad etnica o rural dispersa y se desconozca el dato, diligenciar Sin Información."]
[null,null,"Talla al nacer de la niña o el niño*",null,"Centimetros (Mínimo 30- Máximo 65).\nEn caso de que el beneficiario pertenezca a una comunidad etnica o rural dispersa  y se desconozca el dato, diligenciar Sin Información."]
[]
[null,null,"La niña o el niño tiene alguna dieta especial, restricción alimentaria o alergia alimentaria "]
[null,null,"SI / NO*"]
[null,null,"Si la respuesta anterior es SI, indique la dieta,restricción o alergia alimentaria*",null,"Si no tiene ninguna dieta especial,restricción o alergia, escriba  \"No Aplica\""]
[]
[null,null,"Información para niñas y niños menores de 6 meses"]
[]
[null,null,"¿ Esta siendo alimentado con leche materna de forma exclusiva?*"]
[null,null,"Si la respuesta anterior es NO, ¿Qué tipo de alimentación recibe la niña o niño?"]
[null,null,"Leche materna *"]
[null,null,"Leche de formula*"]
[null,null,"Leche de vaca*"]
[null,null,"Alimentación familiar*"]
[null,null,"Leche de otro mamífero*"]
[null,null,"Otro ¿Cuál?*",null,"En caso de no ser necesario diligenciar esta casilla, escriba \n\"No Aplica\"."]
[]
[]
[null,null,"Información para niñas y niños entre 6 meses  y 1 año"]
[null,null,"¿Cuáles alimentos predominan en su alimentación?"]
[null,null,"Leche materna*"]
[null,null,"Leche de formula*"]
[null,null,"Leche de vaca*"]
[null,null,"Alimentación familiar*"]
[null,null,"Leche de otro mamífero*"]
[null,null,"Otro ¿Cuál?*",null,"En caso de no ser necesario diligenciar esta casilla, escriba \n\"No Aplica\"."]
[]
[]
[null,null,"Información para niñas y niños mayores de 1 año"]
[]
[null,null," ¿Ha recibido en el ultimo año antiparasitarios, por parte de algún servicio de salud?*"]
[null,null,"En caso de haber recibido antiparasitarios, indique la última fecha en la que fue tomada por la niña o el niño*",null,null,null,"En caso de no ser necesario diligenciar esta casilla, escriba \n\"No Aplica\"."]
[]
[null,"DISCAPACIDAD"]
[]
[null,null,"TIPIFICACIÓN DE LA DISCAPACIDAD"]
[null,null,"Movilidad/Física*",null,null,"Esta tipificación debe responder a un diagnostico médico. Si este no se tiene marque NO. "]
[null,null,"Sensorial*"]
[null,null,"Mental*"]
[null,null,"Múltiple*"]
[]
[null,null,"Diagnóstico de la discapacidad",null,null,"En caso de no ser necesario diligenciar esta casilla, escriba \n\"No Aplica\"."]
[null,null,"GRADO DE LIMITACIÓN EN LA EJECUCIÓN DE ACTIVIDADES, DESDE LA INDEPENDENCIA FUNCIONAL"]
[null,null,"Independiente*",null,null,"Remitase a los manuales operativos en el apartado de discapacidad."]
[null,null,"Independiente con apoyo*"]
[null,null,"Independencia restringida*"]
[null,null,"Dependencia*"]
[]
[null,null,"APOYO REQUERIDO (DESCRIBA EL APOYO REQUERIDO POR EL USUARIO)",null,null,null,"En caso de no ser necesario diligenciar esta casilla, escriba \n\"No Aplica\""]
[]
[null,null,"SI EL USUARIO RECIBE ALGUNA ATENCIÓN COMPLEMENTARIA EN OTRA ENTIDAD, INDIQUE LO SIGUIENTE"]
[null,null,"Atención,¿Cuál?",null,"Si no recibe atención complementaria en otra entidad, escriba en todos los campos No aplica"]
[null,null,"Horario"]
[null,null,"Entidad"]
[null,null,"Frecuencia"]
[]
[null,null,"¿LA PERSONA ENCARGADA PRINCIPALMENTE DEL CUIDADO DE LA NIÑA O NIÑO, REALIZA ALGÚN OTRO TIPO DE ACTIVIDAD?"]
[null,null,"SI / NO*"]
[null,null,"¿Cuál?*",null,"Si no realiza ninguna otra actividad, escriba No aplica"]
[]
[null,null,"ENTIDAD QUE DIAGNOSTICÓ LA DISCAPACIDAD*"]

{"sheet":"Base Dat Mod I","index":3,"n_rows":8,"n_cols":67,"rows_kept":8,"cut":false,"hidden":false,"merged":[[0,0,4,66],[6,42,6,47],[5,42,5,47],[6,48,6,49],[6,33,6,34],[6,28,6,32],[6,36,6,41],[5,35,5,41],[6,16,6,27],[6,13,6,15],[6,50,6,53],[6,55,6,58],[6,60,6,63],[6,64,6,65],[5,50,5,66]]}
[]
[]
[]
[]
[]
[null,null,null,null,null,null,null,null,null,null,null,null,null,null,null,null,null,null,null,null,null,null,null,null,null,null,null,null,null,null,null,null,null,null,null,"Información para niñas y niños menores de 6 meses",null,null,null,null,null,null,"Información para niñas y niños entre 6 meses  y 1 año",null,null,null,null,null,null,null,"DISCAPACIDAD"]
[null,null,null,null,null,null,null,null,null,null,null,null,null,"Datos de contacto del Adulto Responsable o Acudiente",null,null,"Salud",null,null,null,null,null,null,null,null,null,null,null,"NUTRICIÓN Y MEDIDAS ANTROPOMETRICAS",null,null,null,null,"La niña o el niño tiene alguna dieta especial, restricción alimentaria o alergia alimentaria ",null,null,"Si la respuesta anterior es NO, ¿Qué tipo de alimentación recibe la niña o niño?",null,null,null,null,null,"¿Cuáles alimentos predominan en su alimentación?",null,null,null,null,null,"Información para niñas y niños mayores de 1 año",null,"TIPIFICACIÓN DE LA DISCAPACIDAD",null,null,null,null,"GRADO DE LIMITACIÓN EN LA EJECUCIÓN DE ACTIVIDADES, DESDE LA INDEPENDENCIA FUNCIONAL",null,null,null,null,"SI EL USUARIO RECIBE ALGUNA ATENCIÓN COMPLEMENTARIA EN OTRA ENTIDAD, INDIQUE LO SIGUIENTE",null,null,null,"¿LA PERSONA ENCARGADA PRINCIPALMENTE DEL CUIDADO DE LA NIÑA O NIÑO, REALIZA ALGÚN OTRO TIPO DE ACTIVIDAD?"]
["NUIP","Fecha de diligenciamiento Inicial ","Nombre de la Unidad de Servicio-UDS (a la que asiste la niña o el niño)","Codigo de la UDS en Cuentame","Servicio Prestado en la UDS","Primer Nombre","Segundo Nombre","Primer Apellido","Segundo Apellido","Tipo de Documento de Identidad","Grupo étnico con el que se autoreconoce la niña o el niño*","Si el Nucleo familiar del beneficiario se reconoce como miembro de un grupo étnico, Indique a que comunidad, resguardo o territorio colectivo pertenece","¿El beneficiario habla la lengua nativa del grupo ectnico al que pertenece?","Nombres y apellidos (Acudiente)","Parentesco (Acudiente)","Numero de contacto en caso de emergencia (Acudiente)","Se encuentra afiliado al Sistema de Seguridad Social","En caso de no estar afiliado al Sistema de Seguridad Social ¿Cuál es la razon?","Nombre de la Entidad Promotora de Salud a la que se encuentra afiliado","¿La niña o niño cuenta con el carnet de vacunación actualizado?","En caso de que no contar con el carnet de vacunación al dia según la edad de la niña o el niño, ¿Cuál es la razón?","Si la niña o el niño es mayor d e un (1) año, ¿Ha asistido a controles de salud oral?","En caso de no haber asistido a controles de salud oral, ¿Cuál es el motivo por el cual no ha asistido a los controles?","La niña o niño menor de cuatro (4) años ¿Ha recibido valoracion oftalmológica?","La niña o niño menor de cinco(5) años ¿Ha recibido valoracion auditiva?","Si la niña o el niño ha asistido a consultas medicas distintas a las de crecimiento y desarrollo (urgencias o consulta externa), indique el motivo de la  consulta","¿La niña o niño es alérgico a algún medicamento?","Si la respuesta anterior es SI, indique el medicamento al cual es alergico","La niña o niño cuenta con el carnet actualizado de crecimiento y desarrollo","Si la niña o niño asiste a controles de crecimiento y desarrollo, indique la fecha del último control","Rango de edad","Peso al nacer de la niña o el niño","Talla al nacer de de la niña o el niño","Dieta especial( SI / NO)","Si la respuesta anterior es SI, indique la dieta,restriccioón o alergia alimentaria ","¿ Esta siendo alimentado con leche materna de forma exclusiva?\n(<6meses)","Leche materna (<6meses)","Leche de formula (<6meses)","Leche de vaca (<6meses)","Alimentación familiar (<6meses)","Leche de otro mamifero  (<6meses)","Otro ¿Cuál? (<6meses)","Leche materna (>6meses\n<1año)","Leche de formula (>6meses\n<1año)","Leche de vaca (>6meses <1año)","Alimentación familiar (>6meses\n<1año)","Leche de otro mamifero  (>6meses\n<1año)","Otro ¿Cuál? (>6meses \n<1año)"," ¿ha recibido e el ultimo año antiparasitarios, por parte de algún servicio de salud?","En caso de haber recibido antiparasitarios, indique la última fecha en la que fue tomada por la niña o el niño","Movilidad/Física","Sensorial","Mental","Multiple","Diagnostico de la discapacidad","Independiente","Independiente con apoyo","Independencia restringida","Dependencia","APOYO REQUERIDO (DESCRIBA EL APOYO REQUERIDO POR EL USUARIO)","Atención,\n¿Cuál?","Horario","Entidad","Frecuencia","Actividad alterna persona encargada \n(SI / NO)","¿Cuál?","Entidad que diagnosticó la discapacidad"]

{"sheet":"Modulo II","index":4,"n_rows":57,"n_cols":20,"rows_kept":57,"cut":false,"hidden":false,"merged":[[48,2,48,4],[31,4,31,7],[39,4,39,5],[43,6,43,8],[28,1,28,8],[29,2,29,3],[41,2,41,4],[43,2,43,4],[4,5,4,6],[6,1,6,8],[46,2,46,4],[47,2,47,4],[20,2,20,4],[23,2,23,3],[17,5,17,7],[20,6,20,8],[19,2,19,4],[59,1,62,8],[54,2,54,4],[55,2,55,4],[21,2,21,4],[56,2,56,4],[42,2,42,4],[50,2,50,4],[52,2,52,4],[53,2,53,4],[33,2,33,5],[45,2,45,5],[44,1,44,8],[49,2,49,4],[53,6,53,8],[50,6,50,8],[21,6,21,8]]}
[]
[]
[]
[]
[null,null,null,null,null,"Fecha de diligenciamiento Inicial ",null,{"$f":"TODAY()","v":"2017-02-20"}]
[]
[null,"INFORMACIÓN DE LA USUARIA"]
[]
[null,null,"Nombre de la Unidad de Servicio-UDS (a la que asiste la usuaria)*"]
[null,null,"Codigo de la UDS en Cuentame*"]
[null,null,"Servicio Prestado en la UDS*"]
[]
[null,null,"Primer Nombre*"]
[null,null,"Segundo Nombre"]
[null,null,"Primer Apellido*"]
[null,null,"Segundo Apellido",null,null,{"$f":"IFERROR(VLOOKUP(D18,'Base Dat Mod II'!$A$11:$A$997,1,TRUE),\"N/A\")","v":"N/A"}]
[null,null,"Tipo de Documento de Identidad*",null,null,"Verificar duplicidad de documento"]
[null,null,"Diligenciar el documento de identidad -Cedula*",null,null,{"$f":"IF(D18=F16,\"EXISTE DUPLICIDAD DE LA INFORMACIÓN\",IF(D18=\"\",\"PENDIENTE\",\"NUEVO NUIP\"))","v":"PENDIENTE"}]
[]
[null,null,"Grupo étnico con el que se autoreconoce la usuaria*"]
[null,null,"Indique a que comunidad, resguardo o territorio colectivo pertenece*",null,null,null,"Si no se autoreconoce como parte de un grupo étnico, escriba\"No aplica\""]
[null,null,"¿La beneficiaria habla la lengua nativa del grupo étnico al que pertenece?*",null,null,null,"En caso de no ser necesario diligenciar esta casilla, escriba \n\"No Aplica\"."]
[]
[null,null,"Datos de contacto en caso de emergencia"]
[null,null,"Nombres y apellidos*"]
[null,null,"Parentesco*",null,null,null,null,null,null,null,null,null,null,null,null,null,null,null,null,0]
[null,null,"Número de contacto* ",null,null,null,null,null,null,null,null,null,null,null,null,null,null,null,null,1]
[null,null,null,null,null,null,null,null,null,null,null,null,null,null,null,null,null,null,null,2]
[null,"MUJER GESTANTE",null,null,null,null,null,null,null,null,null,null,null,null,null,null,null,null,null,3]
[null,null,null,null,null,null,null,null,null,null,null,null,null,null,null,null,null,null,null,4]
[null,null,"¿Es su primer hijo?*",null,null,null,null,null,null,null,null,null,null,null,null,null,null,null,null,5]
[null,null,"¿Cuántos hijos nacidos vivos ha tenido?*",null,"Si es su primer hijo, diligenciar 0.",null,null,null,null,null,null,null,null,null,null,null,null,null,null,6]
[null,null,null,null,null,null,null,null,null,null,null,null,null,null,null,null,null,null,null,7]
[null,null,"ACTUALMENTE TIENE DENTRO DE SUS HABITOS EL USO Y/O CONSUMO:",null,null,null,null,null,null,null,null,null,null,null,null,null,null,null,null,8]
[null,null,"Cigarrillo*",null,null,null,null,null,null,null,null,null,null,null,null,null,null,null,null,9]
[null,null,"Bebidas Alcohólicas*",null,null,null,null,null,null,null,null,null,null,null,null,null,null,null,null,10]
[null,null,"Medicamentos con prescripción médica*",null,null,null,null,null,null,null,null,null,null,null,null,null,null,null,null,11]
[null,null,"Medicamentos sin prescripción médica*",null,null,null,null,null,null,null,null,null,null,null,null,null,null,null,null,12]
[null,null,"Sustancias psicoactivas*",null,null,null,null,null,null,null,null,null,null,null,null,null,null,null,null,13]
[null,null,"Otro (cuál)*",null,"Si no tiene habitos diferentes a los mencionados anteriormente, escriba No Aplica",null,null,null,null,null,null,null,null,null,null,null,null,null,null,14]
[null,null,null,null,null,null,null,null,null,null,null,null,null,null,null,null,null,null,null,15]
[null,null,"Número de semanas de gestación a la fecha de ingreso al servicio*",null,null,null,null,null,null,null,null,null,null,null,null,null,null,null,null,16]
[null,null,"¿Ha asistido a controles prenatales?*",null,null,null,null,null,null,null,null,null,null,null,null,null,null,null,null,17]
[null,null,"En caso de no haber asistido a los controles prenatales, explique el motivo*",null,null,null,"Si ha asistido a controles prenatales, escriba No Aplica",null,null,null,null,null,null,null,null,null,null,null,null,18]
[null,null,null,null,null,null,null,null,null,null,null,null,null,null,null,null,null,null,null,19]
[null,null,"DURANTE EL PERIODO DE GESTACIÓN USTED HA RECIBIDO CAPACITACIÓN EN:",null,null,null,null,null,null,null,null,null,null,null,null,null,null,null,null,20]
[null,null,"Promoción de la Salud y prevención de enfermedades*"]
[null,null,"Fortalecimiento de los vínculos afectivos*"]
[null,null,"Promoción del desarrollo infantil*"]
[null,null,"Nutrición y Lactancia Materna*"]
[null,null,"Otro, ¿Cuál?*",null,null,null,"En caso de no ser necesario diligenciar esta casilla, escriba \"No Aplica\"."]
[]
[null,null,"Durante la gestación ¿ Le han aplicado las vacunas de TOXOIDE TETANICO y DIFTERICO?*"]
[null,null,"¿Cuáles sumplementos nutricionales le han suministrado durante la gestación? *",null,null,null,"Si no le han suministrado sumplementos nutricionales,escriba No Aplica"]
[null,null,"¿La gestante se encuentra participando del curso psicoprofiláctico?*"]
[null,null,"Estado civil *"]
[null,null,"¿Se encuentra trabajando?*"]

{"sheet":"Base Dat Mod II","index":5,"n_rows":11,"n_cols":37,"rows_kept":11,"cut":false,"hidden":false,"merged":[[0,0,4,26],[9,13,9,15],[9,18,9,23],[9,27,9,31]]}
[]
[]
[]
[]
[]
[]
[]
[]
[]
[null,null,null,null,null,null,null,null,null,null,null,null,null,"Datos de contacto en caso de emergencia",null,null,null,null,"ACTUALMENTE TIENE DENTRO DE SUS HABITOS EL USO Y/O CONSUMO:",null,null,null,null,null,null,null,null,"DURANTE EL PERIODO DE GESTACIÓN USTED HA RECIBIDO CAPACITACIÓN EN:"]
["Diligenciar el NUIP*","Fecha de diligenciamiento Inicial ","Nombre de la Unidad de Servicio-UDS (a la que asiste la usuaria)*","Codigo de la UDS en Cuentame*","Servicio Prestado en la UDS*","Primer Nombre*","Segundo Nombre","Primer Apellido*","Segundo Apellido","Tipo de Documento de Identidad*","Grupo étnico con el que se autoreconoce la usuaria*","Indique a que comunidad, resguardo o territorio colectivo pertenece*","¿La beneficiaria habla la lengua nativa del grupo étnico al que pertenece?*","Nombres y apellidos*","Parentesco*","Numero de contacto ","¿Es su primer hijo?*","¿Cuántos hijos nacidos vivos ha tenido?*","Cigarrillo*","Bebidas Alcoholicas*","Medicamentos con prescripción médica*","Medicamentos sin prescripción médica*","Sustancias psicoactivas*","Otro (cuál)*","Numero de semanas de gestación a la fecha de ingreso al servicio*","¿Ha asistido a controles prenatales?*","En caso de no haber asistido a los controles prenatales, explique el motivo*","Prevención  y riesgos en salud*","Fortalecimiento de los vínculos afectivos*","Promoción del desarrollo infantil*","Nutrición y Lactancia Materna*","Otros*","Durante la gestación ¿ Le han aplicado las vacunas de TOXOIDE TETANICO y DIFTERICO?*","¿Le han recetado sumplementos nutricionales durante la gestación? Si es así, ¿cuáles?*","¿La gestante se encuentra participando del curso psicoprofiláctico?*","Estado civil *","¿Se encuentra trabajando?*"]

{"sheet":"Modulo III","index":6,"n_rows":180,"n_cols":24,"rows_kept":180,"cut":false,"hidden":false,"merged":[[179,4,179,5],[123,2,123,4],[129,2,129,4],[86,2,86,4],[87,2,87,4],[96,2,96,4],[102,2,102,4],[118,2,118,5],[103,2,103,5],[116,1,116,8],[95,4,95,5],[100,4,100,5],[114,4,114,5],[169,2,169,5],[175,2,175,5],[131,2,131,6],[162,2,162,4],[148,2,148,5],[154,2,154,5],[161,4,161,5],[168,4,168,5],[174,4,174,5],[75,2,75,5],[85,2,85,4],[1,1,1,8],[4,5,4,6],[6,1,6,8],[57,2,57,4],[58,2,58,4],[59,2,59,4],[55,1,55,8],[49,2,49,3],[60,2,60,4],[61,2,61,5],[10,2,10,3],[9,1,9,8],[45,1,45,8],[74,2,74,5],[41,2,41,4],[66,4,66,5],[43,2,43,4],[2,1,2,8],[30,2,30,3],[20,2,20,3],[67,2,67,5],[8,5,8,7],[13,4,13,7],[16,4,16,7],[17,4,17,7],[23,4,23,7],[27,4,27,7],[34,4,34,7],[38,4,38,7]]}
[]
[]
[]
[]
[null,null,null,null,null,"Fecha de diligenciamiento Inicial ",null,{"$f":"TODAY()","v":"2017-02-20"}]
[]
[null,"COMPOSICIÓN Y ESTRUCTURA FAMILIAR",null,null,null,null,null,null,null,null,null,null,null,null,null,null,null,null,null,null,"No aplica","No aplica","No aplica","No aplica"]
[null,null,null,{"$f":"IFERROR(VLOOKUP(D9,'Base Dat Mod III'!$A$8:$A$999,1,TRUE),\"N/A\")","v":"N/A"},null,"Verificar duplicidad de documento",null,null,null,null,null,null,null,null,null,null,null,null,null,null,1,"Ninguno","SI","Con empleo"]
[null,null,"Diligenciar el documento de identidad del beneficiario (Cédula-Tarjeta de identidad-NUIP)*",null,null,{"$f":"IF(D9=D8,\"EXISTE DUPLICIDAD DE LA INFORMACIÓN\",IF(D9=\"\",\"PENDIENTE\",\"NUEVO NUIP\"))","v":"PENDIENTE"},null,null,null,null,null,null,null,null,null,null,null,null,null,null,2,"Primaria","NO","Sin empleo"]
[null,"MIEMBROS QUE COMPONEN EL NUCLEO FAMILIAR DEL  BENEFICIARIO Y QUE CONVIVEN CON LA NIÑA/NIÑO",null,null,null,null,null,null,null,null,null,null,null,null,null,null,null,null,null,null,3,"Secundaria"]
[null,null,"MADRE",null,null,null,null,null,null,null,null,null,null,null,null,null,null,null,null,null,4,"Técnico"]
[null,null,"Edad*",null,null,null,null,null,null,null,null,null,null,null,null,null,null,null,null,null,5,"Tecnologo"]
[null,null,"Nivel de escolaridad*",null,null,null,null,null,null,null,null,null,null,null,null,null,null,null,null,null,6,"Universitario"]
[null,null,"Ocupación*",null,"En caso de no ser necesario diligenciar esta casilla, escriba \"No Aplica\".",null,null,null,null,null,null,null,null,null,null,null,null,null,null,null,7,"Posgrado"]
[null,null,"Sabe leer*",null,null,null,null,null,null,null,null,null,null,null,null,null,null,null,null,null,8]
[null,null,"Sabe escribir*",null,null,null,null,null,null,null,null,"Con empleo",null,null,null,null,null,null,null,null,9]
[null,null,"Situación laboral*",null,null,null,null,null,null,null,null,"Sin empleo",null,null,null,null,null,null,null,null,10]
[null,null,"Condiciones especiales*",null,"En caso de no ser necesario diligenciar esta casilla, escriba \"No Aplica\".",null,null,null,null,null,null,null,null,null,null,null,null,null,null,null,11]
[null,null,"Aporta al sustento económico*",null,null,null,null,null,null,null,null,null,null,null,null,null,null,null,null,null,12]
[null,null,null,null,null,null,null,null,null,null,null,null,null,null,null,null,null,null,null,null,13]
[null,null,"PADRE",null,null,null,null,null,null,null,null,null,null,null,null,null,null,null,null,null,14]
[null,null,"Edad*",null,null,null,null,null,null,null,null,null,null,null,null,null,null,null,null,null,15]
[null,null,"Nivel de escolaridad*",null,null,null,null,null,null,null,null,null,null,null,null,null,null,null,null,null,16]
[null,null,"Ocupación*",null,"En caso de no ser necesario diligenciar esta casilla, escriba \"No Aplica\".",null,null,null,null,null,null,null,null,null,null,null,null,null,null,null,17]
[null,null,"Sabe leer*",null,null,null,null,null,null,null,null,null,null,null,null,null,null,null,null,null,18]
[null,null,"Sabe escribir*",null,null,null,null,null,null,null,null,null,null,null,null,null,null,null,null,null,19]
[null,null,"Situación laboral*",null,null,null,null,null,null,null,null,null,null,null,null,null,null,null,null,null,20]
[null,null,"Condiciones especiales*",null,"En caso de no ser necesario diligenciar esta casilla, escriba \"No Aplica\".",null,null,null,null,null,null,null,null,null,null,null,null,null,null,null,21]
[null,null,"Aporta al sustento economico*",null,null,null,null,null,null,null,null,null,null,null,null,null,null,null,null,null,22]
[null,null,null,null,null,null,null,null,null,null,null,null,null,null,null,null,null,null,null,null,23]
[null,null,"ACUDIENTE (Diligenciar si es distinto a padre o madre - OPCIONAL)",null,null,null,null,null,null,null,null,null,null,null,null,null,null,null,null,null,24]
[null,null,"Parentesco",null,null,null,null,null,null,null,null,null,null,null,null,null,null,null,null,null,25]
[null,null,"Edad",null,null,null,null,null,null,null,null,null,null,null,null,null,null,null,null,null,26]
[null,null,"Nivel de escolaridad",null,null,null,null,null,null,null,"No aplica",null,null,null,null,null,null,null,null,null,27]
[null,null,"Ocupación",null,"En caso de no ser necesario diligenciar esta casilla, escriba \"No Aplica\".",null,null,null,null,null,1,null,null,null,null,null,null,null,null,null,28]
[null,null,"Sabe leer",null,null,null,null,null,null,null,2,null,null,null,null,null,null,null,null,null,29]
[null,null,"Sabe escribir",null,null,null,null,null,null,null,3,null,null,null,null,null,null,null,null,null,30]
[null,null,"Situación laboral",null,null,null,null,null,null,null,4,null,null,null,null,null,null,null,null,null,31]
[null,null,"Condiciones especiales",null,"En caso de no ser necesario diligenciar esta casilla, escriba \"No Aplica\".",null,null,null,null,null,5,null,null,null,null,null,null,null,null,null,32]
[null,null,"Aporta al sustento economico",null,null,null,null,null,null,null,6,null,null,null,null,null,null,null,null,null,33]
[null,null,null,null,null,null,null,null,null,null,7,null,null,null,null,null,null,null,null,null,34]
[null,null,"¿La niña o el niño tienen hermanos(as)? Si es así, ¿Cuántos?*",null,null,null,null,null,null,null,8,null,null,null,null,null,null,null,null,null,35]
[null,null,null,null,null,null,null,null,null,null,9,null,null,null,null,null,null,null,null,null,36]
[null,null,"¿El embarazo del niño o niña usuario, fue planeado ?*",null,null,null,null,null,null,null,10,null,null,null,null,null,null,null,null,null,37]
[null,null,null,null,null,null,null,null,null,null,11,null,null,null,null,null,null,null,null,null,38]
[null,"CARACTERISTICAS DE LA VIVIENDA DEL BENEFICIARIO",null,null,null,null,null,null,null,null,12,null,null,null,null,null,null,null,null,null,39]
[null,null,null,null,null,null,null,null,null,null,13,null,null,null,null,null,null,null,null,null,40]
[null,null,"Tipo de Vivienda*",null,null,null,null,null,null,null,14,null,null,null,null,null,null,null,null,null,41]
[null,null,"Tipo de tenencia de la vivienda*",null,null,null,null,null,null,null,15,null,null,null,null,null,null,null,null,null,42]
[null,null,"TIEMPO DE PERMANENCIA DEL NUCLEO FAMILIAR EN EL BARRIO O CORREGIMIENTO",null,null,null,null,null,null,null,16,null,null,null,null,null,null,null,null,null,43]
[null,null,"Años*",null,null,null,null,null,null,null,17,null,null,null,null,null,null,null,null,null,44]
[null,null,"Reconoce los riesgos que puedan afectar su vivienda\n(Naturales, actividades hechas por humanos, sociales)",null,null,null,null,null,null,null,18,null,null,null,null,null,null,null,null,null,45]
[null,null,null,null,null,null,null,null,null,null,19,null,null,null,null,null,null,null,null,null,46]
[null,null,"Número de personas que conforman el nucleo familar y conviven en la misma vivienda*",null,null,null,null,null,null,null,20,null,null,null,null,null,null,null,null,null,47]
[null,null,null,null,null,null,null,null,null,null,null,null,null,null,null,null,null,null,null,null,48]
[null,"CONDICIONES DE HABITABILIDAD",null,null,null,null,null,null,null,null,null,null,null,null,null,null,null,null,null,null,49]
[null,null,null,null,null,null,null,null,null,null,null,null,null,null,null,null,null,null,null,null,50]
[null,null,"¿ Las niñas y niños duermen con adultos en la misma habitación?*",null,null,null,null,null,null,null,null,null,null,null,null,null,null,null,null,null,51]
[null,null,"¿ Las niñas o niños duermen con adultos en la misma cama?*",null,null,null,null,null,null,null,null,null,null,null,null,null,null,null,null,null,52]
[null,null,"¿La vivienda cuenta con espacios independientes para dormitorio, cocina y baños?*",null,null,null,null,null,null,null,null,null,null,null,null,null,null,null,null,null,53]
[null,null,"¿La vivienda cuenta con espacios aseados? (Verificación a traves de visita domiciliaria)*",null,null,null,null,null,null,null,null,null,null,null,null,null,null,null,null,null,54]
[null,null,"En el núcleo familiar del beneficiario (Mujer gestante- niñas o niños menores de cinco (5) años) duermen en (Verificación a través de visita domiciliaria)",null,null,null,null,null,null,null,null,null,null,null,null,null,null,null,null,null,55]
[null,null,"Hamaca*",null,null,null,null,null,null,null,null,null,null,null,null,null,null,null,null,null,56]
[null,null,"Cama*",null,null,null,null,null,null,null,null,null,null,null,null,null,null,null,null,null,57]
[null,null,"Colchoneta*",null,null,null,null,null,null,null,null,null,null,null,null,null,null,null,null,null,58]
[null,null,"Estera*",null,null,null,null,null,null,null,null,null,null,null,null,null,null,null,null,null,59]
[null,null,"Otro, ¿Cuál? ",null,"En caso de no ser necesario diligenciar esta casilla, escriba \n\"No Aplica\".",null,null,null,null,null,null,null,null,null,null,null,null,null,null,null,60]
[null,null,"EL NÚCLEO FAMILIAR DEL BENEFICIARIO TIENE ACCESO A LOS SIGUIENTES SERVICIOS DOMICILIARIOS:",null,null,null,null,null,null,null,null,null,null,null,null,null,null,null,null,null,61]
[null,null,"Energia*",null,null,null,null,null,null,null,null,null,null,null,null,null,null,null,null,null,62]
[null,null,"Acueducto*",null,null,null,null,null,null,null,null,null,null,null,null,null,null,null,null,null,63]
[null,null,"Alcantarillado*",null,null,null,null,null,null,null,null,null,null,null,null,null,null,null,null,null,64]
[null,null,"Gas natural*",null,null,null,null,null,null,null,null,null,null,null,null,null,null,null,null,null,65]
[null,null,"Telefonía fija*",null,null,null,null,null,null,null,null,null,null,null,null,null,null,null,null,null,66]
[null,null,"Telefonía celular*",null,null,null,null,null,null,null,null,null,null,null,null,null,null,null,null,null,67]
[null,null,null,null,null,null,null,null,null,null,null,null,null,null,null,null,null,null,null,null,68]
[null,null,"EL AGUA QUE CONSUMEN Y UTILIZAN PARA LA PREPARACIÓN DE LOS ALIMENTOS LA OBTIENEN DE",null,null,null,null,null,null,null,null,null,null,null,null,null,null,null,null,null,69]
[null,null,"Acueducto*",null,null,null,null,null,null,null,null,null,null,null,null,null,null,null,null,null,70]
[null,null,"Aguatero*",null,null,null,null,null,null,null,null,null,null,null,null,null,null,null,null,null,71]
[null,null,"Pozo-Aljibe*",null,null,null,null,null,null,null,null,null,null,null,null,null,null,null,null,null,72]
[null,null,"Agua Lluvia*",null,null,null,null,null,null,null,null,null,null,null,null,null,null,null,null,null,73]
[null,null,"Rio, Quebrada, Manantial*",null,null,null,null,null,null,null,null,null,null,null,null,null,null,null,null,null,74]
[null,null,"Agua embotellada o en bolsa*",null,null,null,null,null,null,null,null,null,null,null,null,null,null,null,null,null,75]
[null,null,"Pila Pública*",null,null,null,null,null,null,null,null,null,null,null,null,null,null,null,null,null,76]
[null,null,"Carro Tanque*",null,null,null,null,null,null,null,null,null,null,null,null,null,null,null,null,null,77]
[null,null,null,null,null,null,null,null,null,null,null,null,null,null,null,null,null,null,null,null,78]
[null,null,"¿El núcleo familiar recibe el servicio de agua con regularidad, es decir todos los días?*",null,null,null,null,null,null,null,null,null,null,null,null,null,null,null,null,null,79]
[null,null,"¿El agua que se usa para consumo en el hogar, se le realiza algún tratamiento para potabilizarla? ¿Cuál?*",null,null,null,null,null,null,null,null,null,null,null,null,null,null,null,null,null,80]
[null,null,"¿CUÁL ES EL TRATAMIENTO QUE LE DAN A LAS BASURAS?",null,null,null,null,null,null,null,null,null,null,null,null,null,null,null,null,null,81]
[null,null,"La recoge personal del servicio de aseo*",null,null,null,null,null,null,null,null,null,null,null,null,null,null,null,null,null,82]
[null,null,"La tiran al rio o fuente hídrica*",null,null,null,null,null,null,null,null,null,null,null,null,null,null,null,null,null,83]
[null,null,"La entierran*",null,null,null,null,null,null,null,null,null,null,null,null,null,null,null,null,null,84]
[null,null,"La recoge un servicio informal*",null,null,null,null,null,null,null,null,null,null,null,null,null,null,null,null,null,85]
[null,null,"La queman",null,null,null,null,null,null,null,null,null,null,null,null,null,null,null,null,null,86]
[null,null,"La tiran al patio o aun lote*",null,null,null,null,null,null,null,null,null,null,null,null,null,null,null,null,null,87]
[null,null,"Reutilizan los desperdicios orgánicos para producir abono*",null,null,null,null,null,null,null,null,null,null,null,null,null,null,null,null,null,88]
[null,null,"Otro ¿ Cuál ?*",null,"En caso de no ser necesario diligenciar esta casilla, escriba \n\"No Aplica\".",null,null,null,null,null,null,null,null,null,null,null,null,null,null,null,89]
[null,null,"¿CON QUE TIPO DE SANITARIO CUENTA EL HOGAR?",null,null,null,null,null,null,null,null,null,null,null,"No aplica",null,null,null,null,null,90]
[null,null,"Inodoro conectado al alcantarillado*",null,null,null,null,null,null,null,null,null,null,null,"Exclusivo para el nucleo familiar",null,null,null,null,null,91]
[null,null,"Inodoro conectado a pozo séptico*",null,null,null,null,null,null,null,null,null,null,null,"Compartido con otros nucleos",null,null,null,null,null,92]
[null,null,"Letrina*",null,null,null,null,null,null,null,null,null,null,null,null,null,null,null,null,null,93]
[null,null,"Otros, ¿ cuál?*",null,"En caso de no ser necesario diligenciar esta casilla, escriba \n\"No Aplica\".",null,null,null,null,null,null,null,null,null,null,null,null,null,null,null,94]
[null,null,null,null,null,null,null,null,null,null,null,null,null,null,null,null,null,null,null,null,95]
[null,null,"¿El sanitario es de uso exclusivo para la familia o es compartido con otras familias?*",null,null,null,null,null,null,null,null,null,null,null,null,null,null,null,null,null,96]
[null,null,"Cerca de la vivienda cuenta con:",null,null,null,null,null,null,null,null,null,null,null,null,null,null,null,null,null,97]
[null,null,"Vias de acceso*",null,null,null,null,null,null,null,null,null,null,null,null,null,null,null,null,null,98]
[null,null,"Sedes educativas*",null,null,null,null,null,null,null,null,null,null,null,null,null,null,null,null,null,99]
[null,null,"Bibliotecas publicas y privadas*",null,null,null,null,null,null,null,null,null,null,null,null,null,null,null,null,null,100]
[null,null,"Centro de salud / Hospital*",null,null,null,null,null,null,null,null,null,null,null,null,null,null,null,null,null,101]
[null,null,"Chagra*",null,null,null,null,null,null,null,null,null,null,null,null,null,null,null,null,null,102]
[null,null,"Transporte público*",null,null,null,null,null,null,null,null,null,null,null,null,null,null,null,null,null,103]
[null,null,"Ludotecas*",null,null,null,null,null,null,null,null,null,null,null,null,null,null,null,null,null,104]
[null,null,"Parques con estructura para la recreación de las niñas y los niños*",null,null,null,null,null,null,null,null,null,null,null,null,null,null,null,null,null,105]
[null,null,"Río*",null,null,null,null,null,null,null,null,null,null,null,null,null,null,null,null,null,106]
[null,null,"Lugares Sagrados*",null,null,null,null,null,null,null,null,null,null,null,null,null,null,null,null,null,107]
[null,null,"Otro, ¿Cuál?",null,"En caso de no ser necesario diligenciar esta casilla, escriba \n\"No Aplica\".",null,null,null,null,null,null,null,null,null,null,null,null,null,null,null,108]
[null,null,null,null,null,null,null,null,null,null,null,null,null,null,null,null,null,null,null,null,109]
[null,"RELACIONES FAMILIARES",null,null,null,null,null,null,null,null,null,null,null,null,null,null,null,null,null,null,110]
[]
[null,null,"EL NÚCLEO FAMILIAR COMPARTE SUS DIFICULTADES CON"]
[null,null,"Familiares*"]
[null,null,"Comunidad*"]
[null,null,"Amigos*"]
[null,null,"No los comparten*"]
[null,null,"EL NÚCLEO FAMILIAR COMPARTE SUS ACONTECIMIENTOS ESPECIALES CON"]
[null,null,"Familiares*"]
[null,null,"Comunidad*"]
[null,null,"Amigos*"]
[null,null,"No los comparten*"]
[]
[null,null,"¿Con quién permanece la niña o el niño una vez sale de la unidad de servicio?"]
[]
[null,null,"¿CUÁLES DE ESTAS ACTIVIDADES REALIZA EL NÚCLEO FAMILIAR DE LAS MUJERES GESTANTES/ NIÑAS/NIÑOS MENORES DE CINCO (5) AÑOS DURANTE LA SEMANA PARA FORTALECER EL DIÁLOGO, VÍNCULOS FAMILIARES Y LAZOS AFECTIVOS?"]
[null,null,"Visita al parque*"]
[null,null,"Lecturas *"]
[null,null,"Juegos (de mesa, rondas, etc…)*"]
[null,null,"Fiestas infantiles*"]
[null,null,"Ven televisión*"]
[null,null,"Desarrollo de manualidades o actividades que motiven el aprendizaje*"]
[null,null,"Desarrollo de artesanias y/o actividades diarias propias de su tradición y cultura*"]
[null,null,"Desarrollo de actividades comunitarias (festejos familiares, rituales)*"]
[null,null,"Actividades musicales y folclóricas*"]
[null,null,"Paseos familiares*"]
[null,null,"Mingas ( Aplica para comunidades indígenas)*"]
[null,null,"Preparación de alimentos*"]
[null,null,"Rutinas de Aseo e higiene personal*"]
[null,null,"Labores domésticas*"]
[null,null,"Oficios relacionados con el trabajo de los padres*"]
[]
[null,null,"LAS ACCIONES DE CUIDADO DE LAS NIÑAS Y LOS NIÑOS MENORES DE CINCO (5) AÑOS  EN EL NÚCLEO FAMILAR SON:"]
[null,null,"Exclusivas de la Madre*"]
[null,null,"Exclusivas del Padre*"]
[null,null,"Se delegan a otros miembros de la familia*"]
[null,null,"Se le delegan a hermanos mayores de edad*"]
[null,null,"Se comparten las acciones entre los miembros del núcleo familiar*"]
[null,null,"¿CUÁL ES EL MOTIVO MAS FRECUENTE DE DISGUSTO ENTRE LOS ADULTOS DEL NÚCLEO FAMILIAR?"]
[null,null,"Problemas económicos*"]
[null,null,"Manejo de autoridad*"]
[null,null,"Dificultades en la comunicación*"]
[null,null,"Permitir que otras personas ajenas al núcleo familiar opinen sobre la dinámica familiar*"]
[null,null,"Manejo de tiempo y reponsabilidades*"]
[null,null,"Abandono*"]
[null,null,"Otro, ¿cuál?",null,"En caso de no ser necesario diligenciar esta casilla, escriba \n\"No Aplica\"."]
[null,null,"¿CÓMO SE INTENTA SOLUCIONAR LOS PROBLEMAS DENTRO DEL NÚCLEO FAMILIAR?"]
[null,null,"Dialogando*"]
[null,null,"Con agresión física*"]
[null,null,"Indiferencia*"]
[null,null,"Con agresión verbal*"]
[null,null,"Otras personas ajenas al núcleo familiar se involucran para dar solución*"]
[null,null,"Otro, ¿cuál?",null,"En caso de no ser necesario diligenciar esta casilla, escriba \n\"No Aplica\"."]
[null,null,"LOS ADULTOS QUE CONFORMAN EL NÚCLEO FAMILIAR PERMITEN QUE LAS NIÑAS O LOS NIÑOS PARTICIPEN EN ALGUNA DE LAS SIGUIENTES ACTIVIDADES DEL HOGAR"]
[null,null,"Recoger sus juguetes*"]
[null,null,"Organización de espacios de la vivienda*"]
[null,null,"Otras rutinas de aseo e higiene*"]
[null,null,"Cuidado de mascotas*"]
[null,null,"Otro, ¿cuál?",null,"En caso de no ser necesario diligenciar esta casilla, escriba \n\"No Aplica\"."]
[null,null,"¿QUE TIPO DE RECONOCIMIENTOS O INCENTIVOS SE LE DAN A LAS NIÑAS O LOS NIÑOS MENORES DE CINCO (5) AÑOS POR SUS LOGROS?"]
[null,null,"Le da un regalo*"]
[null,null,"Lo dejan salir a jugar*"]
[null,null,"Lo felicitan verbalmente*"]
[null,null,"Otro, ¿cuál?",null,"En caso de no ser necesario diligenciar esta casilla, escriba \n\"No Aplica\"."]

{"sheet":"Base Dat Mod III","index":7,"n_rows":8,"n_cols":134,"rows_kept":8,"cut":false,"hidden":false,"merged":[[5,2,5,28],[5,29,5,33],[6,31,6,32],[0,0,4,133],[6,119,6,124],[6,125,6,129],[6,130,6,133],[5,83,5,133],[5,34,5,82],[6,92,6,106],[6,107,6,111],[6,112,6,118],[6,67,6,70],[6,71,6,82],[6,83,6,86],[6,87,6,90],[6,38,6,42],[6,43,6,48],[6,59,6,66],[6,18,6,26],[6,2,6,9],[6,10,6,17]]}
[]
[]
[]
[]
[]
[null,null,"COMPOSICIÓN Y ESTRUCTURA FAMILIAR",null,null,null,null,null,null,null,null,null,null,null,null,null,null,null,null,null,null,null,null,null,null,null,null,null,null,"CARACTERISTICAS DE LA VIVIENDA DEL BENEFICIARIO",null,null,null,null,"CONDICIONES DE HABITABILIDAD",null,null,null,null,null,null,null,null,null,null,null,null,null,null,null,null,null,null,null,null,null,null,null,null,null,null,null,null,null,null,null,null,null,null,null,null,null,null,null,null,null,null,null,null,null,null,null,null,"RELACIONES FAMILIARES"]
[null,null,"MADRE",null,null,null,null,null,null,null,"PADRE",null,null,null,null,null,null,null,"ACUDIENTE (diligenciar si es distinto a padre o madre)",null,null,null,null,null,null,null,null,null,null,null,null,"TIEMPO DE PERMANENCIA DEL NUCLEO FAMILIAR EN EL BARRIO O CORREGIMIENTO",null,null,null,null,null,null,"En el nucleo familiar del beneficiario las niñas o niños menores de cinco (5) años duermen en (Verificación a traves de visita domiciliaria)",null,null,null,null,"EL NUCLEO FAMILIAR DEL BENEFICIARIO TIENE ACCESO A LOS SIGUIENTES SERVICIOS DOMICILIARIOS:",null,null,null,null,null,null,null,null,null,null,null,null,null,null,null,"¿CUAL ES EL TRATAMIENTO QUE LE DAN A LAS BASURAS?",null,null,null,null,null,null,null,"¿CON QUE TIPO DE SANITARIO CUENTA EL HOGAR?",null,null,null,"Cerca de la vivienda cuenta",null,null,null,null,null,null,null,null,null,null,null,"EL NUCLEO FAMILIAR COMPARTE SUS DIFICULTADES CON",null,null,null,"EL NUCLEO FAMILIAR COMPARTE SUS ACONTECIMIENTOS ESPECIALES CON",null,null,null,null,"¿CUÁLES DE ESTAS ACTIVIDADES REALIZA EL NUCLEO FAMILIAR DE LAS NIÑAS/NIÑOS MENORES DE CINCO (5) AÑOS DURANTE LA SEMANA PARA FORTALECER EL DIALOGO, VINCULO FAMILIARES Y LAZOS AFECTIVOS? (VERIFICAR CON VISITA DOMICILIARIA)",null,null,null,null,null,null,null,null,null,null,null,null,null,null,"LA DISTRIBUCIÓN DE ROLES Y ACTIVIDADES DEL CUIDADO DE LAS NIÑAS Y LOS NIÑOS MENORES DE CINCO (5) AÑOS, EN EL NUCLEO FAMILAR SE REALIZA",null,null,null,null,"¿CUÁL ES EL MOTIVO MAS FRECUENTE DE DISGUSTO ENTRE LOS ADULTOS DEL NUCLEO FAMILIAR",null,null,null,null,null,null,"¿COMO SE SOLUCIONAN LOS PROBLEMAS DENTRO DEL NUCLEO FAMILIAR?",null,null,null,null,null,"LOS ADULTOS QUE CONFORMAN EL NUCLEO FAMILIAR PERMITEN QUE LAS NIÑAS O LOS NIÑOS PARTICIPEN EN ALGUNA DE LAS SIGUIENTES ACTIVIDADES DEL HOGAR",null,null,null,null,"¿QUE TIPO DE RECONOCIMIENTOS O INCENTIVOS SE LE DAN A LAS NIÑAS O LOS NIÑOS MENORES DE CINCO (5) AÑOS POR SUS LOGROS?"]
["NUIP","Fecha de diligenciamiento Inicial ","Edad","Nivel de escolaridad","Ocupación","Sabe leer","Sabe escribir","Situación laboral","Condiciones especiales","Aporta al sustento economico","Edad","Nivel de escolaridad","Ocupación","Sabe leer","Sabe escribir","Situación laboral","Condiciones especiales","Aporta al sustento economico","Parentesco","Edad","Nivel de escolaridad","Ocupación","Sabe leer","Sabe escribir","Situación laboral","Condicione especiales","Aporta al sustento economico","¿La niña o el niño tienen hermanos(as)? Si es así, ¿Cuántos?","El embarazo del niño o niña usuario, fue planeado ?","Tipo de Vivienda","Tipo de tenencia de la vivienda","Años","Reconoce los riesgos que puedan afectar su vivienda\n(Naturales, actividades hechas por humanos, sociales)","Numero de personas que conforman el nucleo familar y conviven en la misma vivienda","¿ Las niñas y niños duermen con adultos en la misma habitación?","¿ Las niñas o niños duermen con adultos en la misma cama?","¿La vivienda cuenta con espacios independientes para dormitorio, cocina y baños?","¿La vivienda cuenta con espacios aseados? (Verificación a traves de visita domiciliaria)","Hamaca","Cama","Colchoneta","Estera","Otro, ¿Cuál? ","Energia","Acueducto","Alcantarillado","Gas natural","Telefonía fija","Telefonía celular","Acueducto","Aguatero","Pozo-Aljibe","Agua Lluvia","Rio, Quebrada, Manantial","Agua embotellada o en bolsa","Pila Pública","Carro Tanque","¿El nucleo familiar recibe el servicio de agua con regularidad, es decir todos los días?","¿El agua que se usa para consumo en el hogar, se le realiza algún tratamiento? ¿Cuál?","La recoge personal del servicio de aseo","La tiran al rio o fuente hídrica","La entierran","La recoge un servicio informal","La queman","La tiran al patio o aun lote","Reutilizan los desperdicios organicos para producir abono","Otro ¿ Cual ?","Inodoro conectado al alcantarillado","Inodoro conectado a pozo séptico","Letrina","Otro, ¿cual?","¿El sanitario es de uso exclusivo para la familia o es compartido con otras familias?","Vias de acceso","Sedes educativas","Bibliotecas publicas y privadas","Centro de salud / Hospital","Chagra","Transporte publico","Ludotecas","Parques con estructura para la recreación de las niñas y los niños.","Rio","Lugares Sagrados","Otro, ¿Cuál?","Familiares","Comunidad","Amigos","No los comparten","Familiares","Comunidad","Amigos","No los comparten","¿Con quién permanece la niña o el niño una vez salen de la unidad de servicio?","Visita al parque","Lecturas ","Juegos (de mesa, rondas, etc…)","Fiestas infantiles","Ven televisión","Desarrollo de manualidades o actividades que motiven el aprendizaje","Desarrollo de artesanias y/o actividades diarias propias de su tradición y cultura","Desarrollo de actividades comunitarias (festejos familiares, rituales) ","Actividades musicales y folclóricas","Paseos familiares","Mingas ( Aplica para comunidades indigenas)","Preparación de alimentos","Rutinas de Aseo e higiene personal","Labores domesticas","Oficios relacionados con el trabajo de los padres","Labores exclusivas de la Madre","Labores exclusivas del Padre","Se delega a otros miembros de la familia","Se le delega a hermanos mayores","El Padre y Madre/ Padastro y Madrastra, comparten labores y responsabilidades","Problemas económicos","Manejo de autoridad","Falta de comunicación","Permitir que otras personas ajenas al núcleo familiar opinen sobre la dinámica familiar","Menjo de tiempo y reponsabilidades","Abandono","Otro, ¿cual?","Dialogando","Con agresión física","Indiferencia","Con agresión verbal","Otras personas ajenas al nucleo familiar se involucran para dar solución","No se solucionan","Recoger sus juguetes","Organización de espacios de la vivienda","Otras rutinas de aseo e higiene","Cuidado de mascotas","Otro, ¿cual?","Le da un regalo","Lo dejan salir a jugar","Lo felicitan verbalmente","Otro, ¿cual?"]

{"sheet":"Consulta Mod I y III","index":8,"n_rows":174,"n_cols":9,"rows_kept":174,"cut":false,"hidden":false,"merged":[[125,5,125,8],[142,5,142,8],[148,5,148,8],[156,5,156,7],[163,5,163,8],[169,5,169,8],[98,5,98,7],[99,5,99,8],[52,5,52,8],[112,5,112,8],[117,5,117,7],[123,5,123,7],[111,5,111,8],[70,5,70,8],[71,5,71,8],[81,5,81,7],[82,5,82,7],[83,5,83,7],[92,5,92,7],[53,5,53,7],[54,5,54,7],[55,5,55,7],[56,5,56,7],[57,5,57,8],[63,5,63,8],[10,5,10,8],[11,5,11,6],[20,5,20,6],[30,5,30,6],[41,5,41,7],[43,5,43,7],[47,5,47,6],[44,5,44,8],[98,0,98,2],[99,0,99,2],[100,0,100,3],[101,2,104,3],[106,0,106,3],[45,0,45,3],[85,0,85,3],[46,0,46,2],[47,0,47,2],[50,2,50,3],[51,2,51,3],[53,0,53,3],[84,0,84,3],[70,0,70,3],[79,0,79,3],[81,0,81,2],[82,0,82,2],[49,2,49,3],[92,0,92,3],[55,2,55,3],[57,0,57,3],[60,0,60,3],[69,0,69,3],[43,0,43,2],[31,0,31,3],[15,0,15,3],[10,0,10,3],[8,0,8,3],[9,1,9,2],[37,0,37,2],[38,0,38,2],[39,0,39,2],[40,0,40,2],[41,0,41,2],[42,0,42,2],[26,0,26,1],[32,0,32,2],[33,0,33,2],[34,0,34,2],[1,0,4,8],[8,5,8,8],[9,6,9,7],[35,0,35,2],[36,0,36,2],[6,0,6,2],[22,0,22,2],[23,0,23,2],[24,0,24,2]]}
[]
[]
[]
[]
[]
[]
["Diligenciar el NUIP",null,null,123]
[]
["MODULO I",null,null,null,null,"MODULO III"]
[null,"Fecha de diligenciamiento Inicial ",null,{"$f":"VLOOKUP($D$7,'Base Dat Mod I'!$A$8:$BO$999,2,0)","v":{"$error":"#N/A"}},null,null,"Fecha de diligenciamiento Inicial ",null,{"$f":"VLOOKUP(D7,'Base Dat Mod III'!A8:ED998,2,0)","v":{"$error":"#N/A"}}]
["INFORMACIÓN DE LA UNIDAD DE SERVICIO",null,null,null,null,"COMPOSICIÓN Y ESTRUCTURA FAMILIAR"]
["Nombre de la Unidad de Servicio-UDS (a la que asiste la niña o el niño)*",{"$f":"VLOOKUP($D$7,'Base Dat Mod I'!$A$8:$BO$999,3,0)","v":{"$error":"#N/A"}},null,null,null,"MADRE"]
["Codigo de la UDS en Cuentame*",{"$f":"VLOOKUP($D$7,'Base Dat Mod I'!$A$8:$BO$999,4,0)","v":{"$error":"#N/A"}},null,null,null,"Edad*",{"$f":"VLOOKUP($D$7,'Base Dat Mod III'!$A$8:$ED$999,3,0)","v":{"$error":"#N/A"}}]
["Servicio Prestado en la UDS*",{"$f":"VLOOKUP($D$7,'Base Dat Mod I'!$A$8:$BO$999,5,0)","v":{"$error":"#N/A"}},null,null,null,"Nivel de escolaridad*",{"$f":"VLOOKUP($D$7,'Base Dat Mod III'!$A$8:$ED$999,4,0)","v":{"$error":"#N/A"}}]
[null,null,null,null,null,"Ocupación*",{"$f":"VLOOKUP($D$7,'Base Dat Mod III'!$A$8:$ED$999,5,0)","v":{"$error":"#N/A"}}]
["INFORMACIÓN DEL USUARIO (NIÑA/NIÑO)",null,null,null,null,"Sabe leer*",{"$f":"VLOOKUP($D$7,'Base Dat Mod III'!$A$8:$ED$999,6,0)","v":{"$error":"#N/A"}}]
["Primer Nombre*",{"$f":"VLOOKUP($D$7,'Base Dat Mod I'!$A$8:$BO$999,6,0)","v":{"$error":"#N/A"}},null,null,null,"Sabe escribir*",{"$f":"VLOOKUP($D$7,'Base Dat Mod III'!$A$8:$ED$999,7,0)","v":{"$error":"#N/A"}}]
["Segundo Nombre",{"$f":"VLOOKUP($D$7,'Base Dat Mod I'!$A$8:$BO$999,7,0)","v":{"$error":"#N/A"}},null,null,null,"Situación laboral*",{"$f":"VLOOKUP($D$7,'Base Dat Mod III'!$A$8:$ED$999,8,0)","v":{"$error":"#N/A"}}]
["Primer Apellido*",{"$f":"VLOOKUP($D$7,'Base Dat Mod I'!$A$8:$BO$999,8,0)","v":{"$error":"#N/A"}},null,null,null,"Condiciones especiales*",{"$f":"VLOOKUP($D$7,'Base Dat Mod III'!$A$8:$ED$999,9,0)","v":{"$error":"#N/A"}}]
["Segundo Apellido",{"$f":"VLOOKUP($D$7,'Base Dat Mod I'!$A$8:$BO$999,9,0)","v":{"$error":"#N/A"}},null,null,null,"Aporta al sustento economico*",{"$f":"VLOOKUP($D$7,'Base Dat Mod III'!$A$8:$ED$999,10,0)","v":{"$error":"#N/A"}}]
["Tipo de Documento de Identidad*",{"$f":"VLOOKUP($D$7,'Base Dat Mod I'!$A$8:$BO$999,10,0)","v":{"$error":"#N/A"}},null,null,null,"PADRE"]
[null,null,null,null,null,"Edad*",{"$f":"VLOOKUP($D$7,'Base Dat Mod III'!$A$8:$ED$999,11,0)","v":{"$error":"#N/A"}}]
["Grupo étnico con el que se identifica la niña o el niño*",null,null,{"$f":"VLOOKUP($D$7,'Base Dat Mod I'!$A$8:$BO$999,11,0)","v":{"$error":"#N/A"}},null,"Nivel de escolaridad*",{"$f":"VLOOKUP($D$7,'Base Dat Mod III'!$A$8:$ED$999,12,0)","v":{"$error":"#N/A"}}]
["Si el Nucleo familiar del beneficiario se reconoce como Afrocolombiano o Indigena Indique a que comunidad, resguardo o territorio colectivo pertenece*",null,null,{"$f":"VLOOKUP($D$7,'Base Dat Mod I'!$A$8:$BO$999,12,0)","v":{"$error":"#N/A"}},null,"Ocupación*",{"$f":"VLOOKUP($D$7,'Base Dat Mod III'!$A$8:$ED$999,13,0)","v":{"$error":"#N/A"}}]
["¿El beneficiario habla la lengua nativa del grupo ectnico al que pertenece?*",null,null,{"$f":"VLOOKUP($D$7,'Base Dat Mod I'!$A$8:$BO$999,13,0)","v":{"$error":"#N/A"}},null,"Sabe leer*",{"$f":"VLOOKUP($D$7,'Base Dat Mod III'!$A$8:$ED$999,14,0)","v":{"$error":"#N/A"}}]
[null,null,null,null,null,"Sabe escribir*",{"$f":"VLOOKUP($D$7,'Base Dat Mod III'!$A$8:$ED$999,15,0)","v":{"$error":"#N/A"}}]
["Datos de contacto del Adulto Responsable o Acudiente",null,null,null,null,"Situación laboral*",{"$f":"VLOOKUP($D$7,'Base Dat Mod III'!$A$8:$ED$999,16,0)","v":{"$error":"#N/A"}}]
["Nombres y apellidos*",{"$f":"VLOOKUP($D$7,'Base Dat Mod I'!$A$8:$BO$999,14,0)","v":{"$error":"#N/A"}},null,null,null,"Condiciones especiales*",{"$f":"VLOOKUP($D$7,'Base Dat Mod III'!$A$8:$ED$999,17,0)","v":{"$error":"#N/A"}}]
["Parentesco*",{"$f":"VLOOKUP($D$7,'Base Dat Mod I'!$A$8:$BO$999,15,0)","v":{"$error":"#N/A"}},null,null,null,"Aporta al sustento economico*",{"$f":"VLOOKUP($D$7,'Base Dat Mod III'!$A$8:$ED$999,18,0)","v":{"$error":"#N/A"}}]
["Numero de contacto en caso de emergencia*",{"$f":"VLOOKUP($D$7,'Base Dat Mod I'!$A$8:$BO$999,16,0)","v":{"$error":"#N/A"}}]
[null,null,null,null,null,"ACUDIENTE (Diligenciar si es distinto a padre o madre - OPCIONAL)"]
["SALUD",null,null,null,null,"Parentesco",{"$f":"VLOOKUP($D$7,'Base Dat Mod III'!$A$8:$ED$999,19,0)","v":{"$error":"#N/A"}}]
["Se encuentra afiliado al Sistema de Seguridad Social*",null,null,{"$f":"VLOOKUP($D$7,'Base Dat Mod I'!$A$8:$BO$999,17,0)","v":{"$error":"#N/A"}},null,"Edad*",{"$f":"VLOOKUP($D$7,'Base Dat Mod III'!$A$8:$ED$999,20,0)","v":{"$error":"#N/A"}}]
["En caso de no estar afiliado al Sistema de Seguridad Social ¿Cuál es la razon?*",null,null,{"$f":"VLOOKUP($D$7,'Base Dat Mod I'!$A$8:$BO$999,18,0)","v":{"$error":"#N/A"}},null,"Nivel de escolaridad*",{"$f":"VLOOKUP($D$7,'Base Dat Mod III'!$A$8:$ED$999,21,0)","v":{"$error":"#N/A"}}]
["Nombre de la Entidad Promotora de Salud a la que se encuentra afiliado*",null,null,{"$f":"VLOOKUP($D$7,'Base Dat Mod I'!$A$8:$BO$999,19,0)","v":{"$error":"#N/A"}},null,"Ocupación*",{"$f":"VLOOKUP($D$7,'Base Dat Mod III'!$A$8:$ED$999,22,0)","v":{"$error":"#N/A"}}]
["¿La niña o niño cuenta con el carnet de vacunación actualizado?*",null,null,{"$f":"VLOOKUP($D$7,'Base Dat Mod I'!$A$8:$BO$999,20,0)","v":{"$error":"#N/A"}},null,"Sabe leer*",{"$f":"VLOOKUP($D$7,'Base Dat Mod III'!$A$8:$ED$999,23,0)","v":{"$error":"#N/A"}}]
["En caso de que no contar con el carnet de vacunación al dia según la edad de la niña o el niño, ¿Cuál es la razón?*",null,null,{"$f":"VLOOKUP($D$7,'Base Dat Mod I'!$A$8:$BO$999,21,0)","v":{"$error":"#N/A"}},null,"Sabe escribir*",{"$f":"VLOOKUP($D$7,'Base Dat Mod III'!$A$8:$ED$999,24,0)","v":{"$error":"#N/A"}}]
["Si la niña o el niño es mayor d e un (1) año, ¿Ha asistido a controles de salud oral?*",null,null,{"$f":"VLOOKUP($D$7,'Base Dat Mod I'!$A$8:$BO$999,22,0)","v":{"$error":"#N/A"}},null,"Situación laboral*",{"$f":"VLOOKUP($D$7,'Base Dat Mod III'!$A$8:$ED$999,25,0)","v":{"$error":"#N/A"}}]
["En caso de no haber asistido a controles de salud oral, ¿Cuál es el motivo por el cual no ha asistido a los controles?*",null,null,{"$f":"VLOOKUP($D$7,'Base Dat Mod I'!$A$8:$BO$999,23,0)","v":{"$error":"#N/A"}},null,"Condiciones especiales*",{"$f":"VLOOKUP($D$7,'Base Dat Mod III'!$A$8:$ED$999,26,0)","v":{"$error":"#N/A"}}]
["La niña o niño menor de cuatro (4) años ¿Ha recibido valoracion oftalmológica?*",null,null,{"$f":"VLOOKUP($D$7,'Base Dat Mod I'!$A$8:$BO$999,24,0)","v":{"$error":"#N/A"}},null,"Aporta al sustento economico*",{"$f":"VLOOKUP($D$7,'Base Dat Mod III'!$A$8:$ED$999,27,0)","v":{"$error":"#N/A"}}]
["La niña o niño menor de cinco(5) años ¿Ha recibido valoracion auditiva?*",null,null,{"$f":"VLOOKUP($D$7,'Base Dat Mod I'!$A$8:$BO$999,25,0)","v":{"$error":"#N/A"}}]
["Si la niña o el niño ha asistido a consultas medicas distintas a las de crecimiento y desarrollo (urgencias o consulta externa), indique el motivo de la  consulta*",null,null,{"$f":"VLOOKUP($D$7,'Base Dat Mod I'!$A$8:$BO$999,26,0)","v":{"$error":"#N/A"}},null,"¿La niña o el niño tienen hermanos(as)? Si es así, ¿Cuántos?*",null,null,{"$f":"VLOOKUP($D$7,'Base Dat Mod III'!$A$8:$ED$999,28,0)","v":{"$error":"#N/A"}}]
["¿La niña o niño es alérgico a algún medicamento?*",null,null,{"$f":"VLOOKUP($D$7,'Base Dat Mod I'!$A$8:$BO$999,27,0)","v":{"$error":"#N/A"}}]
["Si la respuesta anterior es SI, indique el medicamento al cual es alergico*",null,null,{"$f":"VLOOKUP($D$7,'Base Dat Mod I'!$A$8:$BO$999,28,0)","v":{"$error":"#N/A"}},null,"El embarazo de la niña o niño usuario, fue planeado ?*",null,null,{"$f":"VLOOKUP($D$7,'Base Dat Mod III'!$A$8:$ED$999,29,0)","v":{"$error":"#N/A"}}]
[null,null,null,null,null,"CARACTERISTICAS DE LA VIVIENDA DEL BENEFICIARIO"]
["NUTRICIÓN Y MEDIDAS ANTROPOMETRICAS",null,null,null,null,"Tipo de Vivienda*",{"$f":"VLOOKUP($D$7,'Base Dat Mod III'!$A$8:$ED$999,30,0)","v":{"$error":"#N/A"}}]
["La niña o niño cuenta con el carnet actualizado de crecimiento y desarrollo*",null,null,{"$f":"VLOOKUP($D$7,'Base Dat Mod I'!$A$8:$BO$999,29,0)","v":{"$error":"#N/A"}},null,"Tipo de tenencia de la vivienda*",{"$f":"VLOOKUP($D$7,'Base Dat Mod III'!$A$8:$ED$999,31,0)","v":{"$error":"#N/A"}}]
["Si la niña o niño asiste a controles de crecimiento y desarrollo, indique la fecha del último control*",null,null,{"$f":"VLOOKUP($D$7,'Base Dat Mod I'!$A$8:$BO$999,30,0)","v":{"$error":"#N/A"}},null,"TIEMPO DE PERMANENCIA DEL NUCLEO FAMILIAR EN EL BARRIO O CORREGIMIENTO"]
[null,null,null,null,null,"Años*",{"$f":"VLOOKUP($D$7,'Base Dat Mod III'!$A$8:$ED$999,32,0)","v":{"$error":"#N/A"}}]
["Rango de edad*",{"$f":"VLOOKUP($D$7,'Base Dat Mod I'!$A$8:$BO$999,31,0)","v":{"$error":"#N/A"}},"Gramos",null,null,"Reconoce los riesgos que puedan afectar su vivienda\n(Naturales, actividades hechas por humanos, sociales)",{"$f":"VLOOKUP($D$7,'Base Dat Mod III'!$A$8:$ED$999,33,0)","v":{"$error":"#N/A"}}]
["Peso al nacer de la niña o el niño*",{"$f":"VLOOKUP($D$7,'Base Dat Mod I'!$A$8:$BO$999,32,0)","v":{"$error":"#N/A"}},"Centimetros"]
["Talla al nacer de de la niña o el niño*",{"$f":"VLOOKUP($D$7,'Base Dat Mod I'!$A$8:$BO$999,33,0)","v":{"$error":"#N/A"}},null,null,null,"Numero de personas que conforman el nucleo familar y conviven en la misma vivienda*",{"$f":"VLOOKUP($D$7,'Base Dat Mod III'!$A$8:$ED$999,34,0)","v":{"$error":"#N/A"}}]
[null,null,null,null,null,"CONDICIONES DE HABITABILIDAD"]
["La niña o el niño tiene alguna dieta especial, restricción alimentaria o alergia alimentaria ",null,null,null,null,"¿ Las niñas y niños duermen con adultos en la misma habitación?*",null,null,{"$f":"VLOOKUP($D$7,'Base Dat Mod III'!$A$8:$ED$999,35,0)","v":{"$error":"#N/A"}}]
["SI / NO*",{"$f":"VLOOKUP($D$7,'Base Dat Mod I'!$A$8:$BO$999,34,0)","v":{"$error":"#N/A"}},null,null,null,"¿ Las niñas o niños duermen con adultos en la misma cama?*",null,null,{"$f":"VLOOKUP($D$7,'Base Dat Mod III'!$A$8:$ED$999,36,0)","v":{"$error":"#N/A"}}]
["Si la respuesta anterior es SI, indique la dieta,restriccioón o alergia alimentaria*",{"$f":"VLOOKUP($D$7,'Base Dat Mod I'!$A$8:$BO$999,35,0)","v":{"$error":"#N/A"}},null,null,null,"¿La vivienda cuenta con espacios independientes para dormitorio, cocina y baños?*",null,null,{"$f":"VLOOKUP($D$7,'Base Dat Mod III'!$A$8:$ED$999,37,0)","v":{"$error":"#N/A"}}]
[null,null,null,null,null,"¿La vivienda cuenta con espacios aseados? (Verificación a traves de visita domiciliaria)*",null,null,{"$f":"VLOOKUP($D$7,'Base Dat Mod III'!$A$8:$ED$999,38,0)","v":{"$error":"#N/A"}}]
["Información para niñas y niños menores de 6 meses",null,null,null,null,"En el nucleo familiar del beneficiario las niñas o niños menores de cinco (5) años duermen en (Verificación a traves de visita domiciliaria)"]
[null,null,null,null,null,"Hamaca*",{"$f":"VLOOKUP($D$7,'Base Dat Mod III'!$A$8:$ED$999,39,0)","v":{"$error":"#N/A"}}]
["¿ Esta siendo alimentado con leche materna de forma exclusiva?*",{"$f":"VLOOKUP($D$7,'Base Dat Mod I'!$A$8:$BO$999,36,0)","v":{"$error":"#N/A"}},null,null,null,"Cama*",{"$f":"VLOOKUP($D$7,'Base Dat Mod III'!$A$8:$ED$999,40,0)","v":{"$error":"#N/A"}}]
["Si la respuesta anterior es NO, ¿Qué tipo de alimentación recibe la niña o niño?",null,null,null,null,"Colchoneta*",{"$f":"VLOOKUP($D$7,'Base Dat Mod III'!$A$8:$ED$999,41,0)","v":{"$error":"#N/A"}}]
["Leche materna*",{"$f":"VLOOKUP($D$7,'Base Dat Mod I'!$A$8:$BO$999,37,0)","v":{"$error":"#N/A"}},null,null,null,"Estera*",{"$f":"VLOOKUP($D$7,'Base Dat Mod III'!$A$8:$ED$999,42,0)","v":{"$error":"#N/A"}}]
["Leche de formula*",{"$f":"VLOOKUP($D$7,'Base Dat Mod I'!$A$8:$BO$999,38,0)","v":{"$error":"#N/A"}},null,null,null,"Otro, ¿Cuál? ",{"$f":"VLOOKUP($D$7,'Base Dat Mod III'!$A$8:$ED$999,43,0)","v":{"$error":"#N/A"}}]
["Leche de vaca*",{"$f":"VLOOKUP($D$7,'Base Dat Mod I'!$A$8:$BO$999,39,0)","v":{"$error":"#N/A"}},null,null,null,"EL NUCLEO FAMILIAR DEL BENEFICIARIO TIENE ACCESO A LOS SIGUIENTES SERVICIOS DOMICILIARIOS:"]
["Alimentación familiar*",{"$f":"VLOOKUP($D$7,'Base Dat Mod I'!$A$8:$BO$999,40,0)","v":{"$error":"#N/A"}},null,null,null,"Energia*",{"$f":"VLOOKUP($D$7,'Base Dat Mod III'!$A$8:$ED$999,44,0)","v":{"$error":"#N/A"}}]
["Leche de otro mamifero*",{"$f":"VLOOKUP($D$7,'Base Dat Mod I'!$A$8:$BO$999,41,0)","v":{"$error":"#N/A"}},null,null,null,"Acueducto*",{"$f":"VLOOKUP($D$7,'Base Dat Mod III'!$A$8:$ED$999,45,0)","v":{"$error":"#N/A"}}]
["Otro ¿Cuál?",{"$f":"VLOOKUP($D$7,'Base Dat Mod I'!$A$8:$BO$999,42,0)","v":{"$error":"#N/A"}},null,null,null,"Alcantarillado*",{"$f":"VLOOKUP($D$7,'Base Dat Mod III'!$A$8:$ED$999,46,0)","v":{"$error":"#N/A"}}]
[null,null,null,null,null,"Gas natural*",{"$f":"VLOOKUP($D$7,'Base Dat Mod III'!$A$8:$ED$999,47,0)","v":{"$error":"#N/A"}}]
[null,null,null,null,null,"Telefonía fija*",{"$f":"VLOOKUP($D$7,'Base Dat Mod III'!$A$8:$ED$999,48,0)","v":{"$error":"#N/A"}}]
["Información para niñas y niños entre 6 meses  y 1 año",null,null,null,null,"Telefonía celular*",{"$f":"VLOOKUP($D$7,'Base Dat Mod III'!$A$8:$ED$999,49,0)","v":{"$error":"#N/A"}}]
["¿Cuáles alimentos predominan en su alimentación?"]
["Leche materna*",{"$f":"VLOOKUP($D$7,'Base Dat Mod I'!$A$8:$BO$999,43,0)","v":{"$error":"#N/A"}},null,null,null,"EL AGUA QUE CONSUMEN Y UTILIZAN PARA LA PREPARACIÓN DE LOS ALIMENTOS LA OBTIENEN DE"]
["Leche de formula*",{"$f":"VLOOKUP($D$7,'Base Dat Mod I'!$A$8:$BO$999,44,0)","v":{"$error":"#N/A"}},null,null,null,"Acueducto*",{"$f":"VLOOKUP($D$7,'Base Dat Mod III'!$A$8:$ED$999,50,0)","v":{"$error":"#N/A"}}]
["Leche de vaca*",{"$f":"VLOOKUP($D$7,'Base Dat Mod I'!$A$8:$BO$999,45,0)","v":{"$error":"#N/A"}},null,null,null,"Aguatero*",{"$f":"VLOOKUP($D$7,'Base Dat Mod III'!$A$8:$ED$999,51,0)","v":{"$error":"#N/A"}}]
["Alimentación familiar*",{"$f":"VLOOKUP($D$7,'Base Dat Mod I'!$A$8:$BO$999,46,0)","v":{"$error":"#N/A"}},null,null,null,"Pozo-Aljibe*",{"$f":"VLOOKUP($D$7,'Base Dat Mod III'!$A$8:$ED$999,52,0)","v":{"$error":"#N/A"}}]
["Leche de otro mamifero*",{"$f":"VLOOKUP($D$7,'Base Dat Mod I'!$A$8:$BO$999,47,0)","v":{"$error":"#N/A"}},null,null,null,"Agua Lluvia*",{"$f":"VLOOKUP($D$7,'Base Dat Mod III'!$A$8:$ED$999,53,0)","v":{"$error":"#N/A"}}]
["Otro ¿Cuál?*",{"$f":"VLOOKUP($D$7,'Base Dat Mod I'!$A$8:$BO$999,48,0)","v":{"$error":"#N/A"}},null,null,null,"Rio, Quebrada, Manantial*",{"$f":"VLOOKUP($D$7,'Base Dat Mod III'!$A$8:$ED$999,54,0)","v":{"$error":"#N/A"}}]
[null,null,null,null,null,"Agua embotellada o en bolsa*",{"$f":"VLOOKUP($D$7,'Base Dat Mod III'!$A$8:$ED$999,55,0)","v":{"$error":"#N/A"}}]
[null,null,null,null,null,"Pila Pública*",{"$f":"VLOOKUP($D$7,'Base Dat Mod III'!$A$8:$ED$999,56,0)","v":{"$error":"#N/A"}}]
["Información para niñas y niños mayores de 1 año",null,null,null,null,"Carro Tanque*",{"$f":"VLOOKUP($D$7,'Base Dat Mod III'!$A$8:$ED$999,57,0)","v":{"$error":"#N/A"}}]
[]
[" ¿ha recibido e el ultimo año antiparasitarios, por parte de algún servicio de salud?*",null,null,{"$f":"VLOOKUP($D$7,'Base Dat Mod I'!$A$8:$BO$999,49,0)","v":{"$error":"#N/A"}},null,"¿El nucleo familiar recibe el servicio de agua con regularidad, es decir todos los días?*",null,null,{"$f":"VLOOKUP($D$7,'Base Dat Mod III'!$A$8:$ED$999,58,0)","v":{"$error":"#N/A"}}]
["En caso de haber recibido antiparasitarios, indique la última fecha en la que fue tomada por la niña o el niño*",null,null,{"$f":"VLOOKUP($D$7,'Base Dat Mod I'!$A$8:$BO$999,50,0)","v":{"$error":"#N/A"}},null,"¿El agua que se usa para consumo en el hogar, se le realiza algún tratamiento? ¿Cuál?*",null,null,{"$f":"VLOOKUP($D$7,'Base Dat Mod III'!$A$8:$ED$999,59,0)","v":{"$error":"#N/A"}}]
[null,null,null,null,null,"¿CUAL ES EL TRATAMIENTO QUE LE DAN A LAS BASURAS?"]
["DISCAPACIDAD",null,null,null,null,"La recoge personal del servicio de aseo*",{"$f":"VLOOKUP($D$7,'Base Dat Mod III'!$A$8:$ED$999,60,0)","v":{"$error":"#N/A"}}]
["TIPIFICACIÓN DE LA DISCAPACIDAD",null,null,null,null,"La tiran al rio o fuente hídrica*",{"$f":"VLOOKUP($D$7,'Base Dat Mod III'!$A$8:$ED$999,61,0)","v":{"$error":"#N/A"}}]
["Movilidad/Física*",{"$f":"VLOOKUP($D$7,'Base Dat Mod I'!$A$8:$BO$999,51,0)","v":{"$error":"#N/A"}},null,null,null,"La entierran*",{"$f":"VLOOKUP($D$7,'Base Dat Mod III'!$A$8:$ED$999,62,0)","v":{"$error":"#N/A"}}]
["Sensorial*",{"$f":"VLOOKUP($D$7,'Base Dat Mod I'!$A$8:$BO$999,52,0)","v":{"$error":"#N/A"}},null,null,null,"La recoge un servicio informal*",{"$f":"VLOOKUP($D$7,'Base Dat Mod III'!$A$8:$ED$999,63,0)","v":{"$error":"#N/A"}}]
["Mental*",{"$f":"VLOOKUP($D$7,'Base Dat Mod I'!$A$8:$BO$999,53,0)","v":{"$error":"#N/A"}},null,null,null,"La queman",{"$f":"VLOOKUP($D$7,'Base Dat Mod III'!$A$8:$ED$999,64,0)","v":{"$error":"#N/A"}}]
["Multiple*",{"$f":"VLOOKUP($D$7,'Base Dat Mod I'!$A$8:$BO$999,54,0)","v":{"$error":"#N/A"}},null,null,null,"La tiran al patio o aun lote*",{"$f":"VLOOKUP($D$7,'Base Dat Mod III'!$A$8:$ED$999,65,0)","v":{"$error":"#N/A"}}]
[null,null,null,null,null,"Reutilizan los desperdicios organicos para producir abono*",{"$f":"VLOOKUP($D$7,'Base Dat Mod III'!$A$8:$ED$999,66,0)","v":{"$error":"#N/A"}}]
["Diagnostico de la discapacidad",{"$f":"VLOOKUP($D$7,'Base Dat Mod I'!$A$8:$BO$999,55,0)","v":{"$error":"#N/A"}},null,null,null,"Otro ¿ Cual ?*",{"$f":"VLOOKUP($D$7,'Base Dat Mod III'!$A$8:$ED$999,67,0)","v":{"$error":"#N/A"}}]
["GRADO DE LIMITACIÓN EN LA EJECUCIÓN DE ACTIVIDADES, DESDE LA INDEPENDENCIA FUNCIONAL",null,null,null,null,"¿CON QUE TIPO DE SANITARIO CUENTA EL HOGAR?"]
["Independiente*",{"$f":"VLOOKUP($D$7,'Base Dat Mod I'!$A$8:$BO$999,56,0)","v":{"$error":"#N/A"}},null,null,null,"Inodoro conectado al alcantarillado*",{"$f":"VLOOKUP($D$7,'Base Dat Mod III'!$A$8:$ED$999,68,0)","v":{"$error":"#N/A"}}]
["Independiente con apoyo*",{"$f":"VLOOKUP($D$7,'Base Dat Mod I'!$A$8:$BO$999,57,0)","v":{"$error":"#N/A"}},null,null,null,"Inodoro conectado a pozo séptico*",{"$f":"VLOOKUP($D$7,'Base Dat Mod III'!$A$8:$ED$999,69,0)","v":{"$error":"#N/A"}}]
["Independencia restringida*",{"$f":"VLOOKUP($D$7,'Base Dat Mod I'!$A$8:$BO$999,58,0)","v":{"$error":"#N/A"}},null,null,null,"Inodoro sin conexión*",{"$f":"VLOOKUP($D$7,'Base Dat Mod III'!$A$8:$ED$999,70,0)","v":{"$error":"#N/A"}}]
["Dependencia*",{"$f":"VLOOKUP($D$7,'Base Dat Mod I'!$A$8:$BO$999,59,0)","v":{"$error":"#N/A"}},null,null,null,"Letrina*",{"$f":"VLOOKUP($D$7,'Base Dat Mod III'!$A$8:$ED$999,71,0)","v":{"$error":"#N/A"}}]
[]
["APOYO REQUERIDO (DESCRIBA EL APOYO REQUERIDO POR EL USUARIO)",null,null,{"$f":"VLOOKUP($D$7,'Base Dat Mod I'!$A$8:$BO$999,60,0)","v":{"$error":"#N/A"}},null,"¿El sanitario es de uso exclusivo para la familia o es compartido con otras familias?*",null,null,{"$f":"VLOOKUP($D$7,'Base Dat Mod III'!$A$8:$ED$999,72,0)","v":{"$error":"#N/A"}}]
[null,null,null,null,null,"Cerca de la vivienda cuenta"]
["SI EL USUARIO RECIBE ALGUNA ATENCIÓN COMPLEMENTARIA EN OTRA ENTIDAD, INDIQUE LO SIGUIENTE",null,null,null,null,"Vias de acceso*",{"$f":"VLOOKUP($D$7,'Base Dat Mod III'!$A$8:$ED$999,73,0)","v":{"$error":"#N/A"}}]
["Atención,¿Cuál?",{"$f":"VLOOKUP($D$7,'Base Dat Mod I'!$A$8:$BO$999,61,0)","v":{"$error":"#N/A"}},null,null,null,"Sedes educativas*",{"$f":"VLOOKUP($D$7,'Base Dat Mod III'!$A$8:$ED$999,74,0)","v":{"$error":"#N/A"}}]
["Horario",{"$f":"VLOOKUP($D$7,'Base Dat Mod I'!$A$8:$BO$999,62,0)","v":{"$error":"#N/A"}},null,null,null,"Bibliotecas publicas y privadas*",{"$f":"VLOOKUP($D$7,'Base Dat Mod III'!$A$8:$ED$999,75,0)","v":{"$error":"#N/A"}}]
["Entidad",{"$f":"VLOOKUP($D$7,'Base Dat Mod I'!$A$8:$BO$999,63,0)","v":{"$error":"#N/A"}},null,null,null,"Centro de salud / Hospital*",{"$f":"VLOOKUP($D$7,'Base Dat Mod III'!$A$8:$ED$999,76,0)","v":{"$error":"#N/A"}}]
["Frecuencia",{"$f":"VLOOKUP($D$7,'Base Dat Mod I'!$A$8:$BO$999,64,0)","v":{"$error":"#N/A"}},null,null,null,"Chagra*",{"$f":"VLOOKUP($D$7,'Base Dat Mod III'!$A$8:$ED$999,77,0)","v":{"$error":"#N/A"}}]
[null,null,null,null,null,"Transporte publico*",{"$f":"VLOOKUP($D$7,'Base Dat Mod III'!$A$8:$ED$999,78,0)","v":{"$error":"#N/A"}}]
["¿LA PERSONA ENCARGADA PRINCIPALMENTE DEL CUIDADO DE LA NIÑA O NIÑO, REALIZA ALGÚN OTRO TIPO DE ACTIVIDAD?",null,null,null,null,"Ludotecas*",{"$f":"VLOOKUP($D$7,'Base Dat Mod III'!$A$8:$ED$999,79,0)","v":{"$error":"#N/A"}}]
["SI / NO*",{"$f":"VLOOKUP($D$7,'Base Dat Mod I'!$A$8:$BO$999,65,0)","v":{"$error":"#N/A"}},null,null,null,"Parques con estructura para la recreación de las niñas y los niños*",{"$f":"VLOOKUP($D$7,'Base Dat Mod III'!$A$8:$ED$999,80,0)","v":{"$error":"#N/A"}}]
["¿Cuál?*",{"$f":"VLOOKUP($D$7,'Base Dat Mod I'!$A$8:$BO$999,66,0)","v":{"$error":"#N/A"}},null,null,null,"Rio*",{"$f":"VLOOKUP($D$7,'Base Dat Mod III'!$A$8:$ED$999,81,0)","v":{"$error":"#N/A"}}]
[null,null,null,null,null,"Lugares Sagrados*",{"$f":"VLOOKUP($D$7,'Base Dat Mod III'!$A$8:$ED$999,82,0)","v":{"$error":"#N/A"}}]
["ENTIDAD QUE DIAGNOSTICÓ LA DISCAPACIDAD*",{"$f":"VLOOKUP($D$7,'Base Dat Mod I'!$A$8:$BO$999,67,0)","v":{"$error":"#N/A"}},null,null,null,"Otro, ¿Cuál?",{"$f":"VLOOKUP($D$7,'Base Dat Mod III'!$A$8:$ED$999,83,0)","v":{"$error":"#N/A"}}]
[null,null,null,null,null,"RELACIONES FAMILIARES"]
[null,null,null,null,null,"EL NUCLEO FAMILIAR COMPARTE SUS DIFICULTADES CON"]
[null,null,null,null,null,"Familiares*",{"$f":"VLOOKUP($D$7,'Base Dat Mod III'!$A$8:$ED$999,84,0)","v":{"$error":"#N/A"}}]
[null,null,null,null,null,"Vecinos*",{"$f":"VLOOKUP($D$7,'Base Dat Mod III'!$A$8:$ED$999,85,0)","v":{"$error":"#N/A"}}]
[null,null,null,null,null,"Amigos*",{"$f":"VLOOKUP($D$7,'Base Dat Mod III'!$A$8:$ED$999,86,0)","v":{"$error":"#N/A"}}]
[null,null,null,null,null,"No los comparten*",{"$f":"VLOOKUP($D$7,'Base Dat Mod III'!$A$8:$ED$999,87,0)","v":{"$error":"#N/A"}}]
[null,null,null,null,null,"EL NUCLEO FAMILIAR COMPARTE SUS ACONTECIMIENTOS ESPECIALES CON"]
[null,null,null,null,null,"Familiares*",{"$f":"VLOOKUP($D$7,'Base Dat Mod III'!$A$8:$ED$999,88,0)","v":{"$error":"#N/A"}}]
[null,null,null,null,null,"Vecinos*",{"$f":"VLOOKUP($D$7,'Base Dat Mod III'!$A$8:$ED$999,89,0)","v":{"$error":"#N/A"}}]
[null,null,null,null,null,"Amigos*",{"$f":"VLOOKUP($D$7,'Base Dat Mod III'!$A$8:$ED$999,90,0)","v":{"$error":"#N/A"}}]
[null,null,null,null,null,"No los comparten*",{"$f":"VLOOKUP($D$7,'Base Dat Mod III'!$A$8:$ED$999,91,0)","v":{"$error":"#N/A"}}]
[]
[null,null,null,null,null,"¿Con quién permanece la niña o el niño una vez salen de la unidad de servicio?",null,null,{"$f":"VLOOKUP($D$7,'Base Dat Mod III'!$A$8:$ED$999,92,0)","v":{"$error":"#N/A"}}]
[]
[null,null,null,null,null,"¿CUÁLES DE ESTAS ACTIVIDADES REALIZA EL NUCLEO FAMILIAR DE LAS NIÑAS/NIÑOS MENORES DE CINCO (5) AÑOS DURANTE LA SEMANA PARA FORTALECER EL DIÁLOGO, VINCULO FAMILIARES Y LAZOS AFECTIVOS? (VERIFICAR CON VISITA DOMICILIARIA)"]
[null,null,null,null,null,"Visita al parque*",{"$f":"VLOOKUP($D$7,'Base Dat Mod III'!$A$8:$ED$999,93,0)","v":{"$error":"#N/A"}}]
[null,null,null,null,null,"Lecturas de cuentos*",{"$f":"VLOOKUP($D$7,'Base Dat Mod III'!$A$8:$ED$999,94,0)","v":{"$error":"#N/A"}}]
[null,null,null,null,null,"Juegos (de mesa, rondas, etc…)*",{"$f":"VLOOKUP($D$7,'Base Dat Mod III'!$A$8:$ED$999,95,0)","v":{"$error":"#N/A"}}]
[null,null,null,null,null,"Fiestas infantiles*",{"$f":"VLOOKUP($D$7,'Base Dat Mod III'!$A$8:$ED$999,96,0)","v":{"$error":"#N/A"}}]
[null,null,null,null,null,"Ven televisión*",{"$f":"VLOOKUP($D$7,'Base Dat Mod III'!$A$8:$ED$999,97,0)","v":{"$error":"#N/A"}}]
[null,null,null,null,null,"Desarrollo de manualidades o actividades que motiven el aprendizaje*",{"$f":"VLOOKUP($D$7,'Base Dat Mod III'!$A$8:$ED$999,98,0)","v":{"$error":"#N/A"}}]
[null,null,null,null,null,"Desarrollo de artesanias y/o actividades diarias propias de su tradición y cultura*",{"$f":"VLOOKUP($D$7,'Base Dat Mod III'!$A$8:$ED$999,99,0)","v":{"$error":"#N/A"}}]
[null,null,null,null,null,"Desarrollo de actividades comunitarias (festejos familiares, rituales)*",{"$f":"VLOOKUP($D$7,'Base Dat Mod III'!$A$8:$ED$999,100,0)","v":{"$error":"#N/A"}}]
[null,null,null,null,null,"Actividades musicales y folclóricas*",{"$f":"VLOOKUP($D$7,'Base Dat Mod III'!$A$8:$ED$999,101,0)","v":{"$error":"#N/A"}}]
[null,null,null,null,null,"Paseos familiares*",{"$f":"VLOOKUP($D$7,'Base Dat Mod III'!$A$8:$ED$999,102,0)","v":{"$error":"#N/A"}}]
[null,null,null,null,null,"Mingas ( Aplica para comunidades indigenas)*",{"$f":"VLOOKUP($D$7,'Base Dat Mod III'!$A$8:$ED$999,103,0)","v":{"$error":"#N/A"}}]
[null,null,null,null,null,"Preparación de alimentos*",{"$f":"VLOOKUP($D$7,'Base Dat Mod III'!$A$8:$ED$999,104,0)","v":{"$error":"#N/A"}}]
[null,null,null,null,null,"Rutinas de Aseo e higiene personal*",{"$f":"VLOOKUP($D$7,'Base Dat Mod III'!$A$8:$ED$999,105,0)","v":{"$error":"#N/A"}}]
[null,null,null,null,null,"Labores domesticas*",{"$f":"VLOOKUP($D$7,'Base Dat Mod III'!$A$8:$ED$999,106,0)","v":{"$error":"#N/A"}}]
[null,null,null,null,null,"Oficios relacionados con el trabajo de los padres*",{"$f":"VLOOKUP($D$7,'Base Dat Mod III'!$A$8:$ED$999,107,0)","v":{"$error":"#N/A"}}]
[]
[null,null,null,null,null,"LA DISTRIBUCIÓN DE ROLES Y ACTIVIDADES DEL CUIDADO DE LAS NIÑAS Y LOS NIÑOS MENORES DE CINCO (5) AÑOS, EN EL NUCLEO FAMILAR SE REALIZA"]
[null,null,null,null,null,"Labores exclusivas de la Madre*",{"$f":"VLOOKUP($D$7,'Base Dat Mod III'!$A$8:$ED$999,108,0)","v":{"$error":"#N/A"}}]
[null,null,null,null,null,"Labores exclusivas del Padre*",{"$f":"VLOOKUP($D$7,'Base Dat Mod III'!$A$8:$ED$999,109,0)","v":{"$error":"#N/A"}}]
[null,null,null,null,null,"Se delega a otros miembros de la familia*",{"$f":"VLOOKUP($D$7,'Base Dat Mod III'!$A$8:$ED$999,110,0)","v":{"$error":"#N/A"}}]
[null,null,null,null,null,"Se le delega a hermanos mayores*",{"$f":"VLOOKUP($D$7,'Base Dat Mod III'!$A$8:$ED$999,111,0)","v":{"$error":"#N/A"}}]
[null,null,null,null,null,"El Padre y Madre/ Padastro y Madrastra, comparten labores y responsabilidades*",{"$f":"VLOOKUP($D$7,'Base Dat Mod III'!$A$8:$ED$999,112,0)","v":{"$error":"#N/A"}}]
[null,null,null,null,null,"¿CUÁL ES EL MOTIVO MAS FRECUENTE DE DISGUSTO ENTRE LOS ADULTOS DEL NUCLEO FAMILIAR"]
[null,null,null,null,null,"Problemas económicos*",{"$f":"VLOOKUP($D$7,'Base Dat Mod III'!$A$8:$ED$999,113,0)","v":{"$error":"#N/A"}}]
[null,null,null,null,null,"Manejo de autoridad*",{"$f":"VLOOKUP($D$7,'Base Dat Mod III'!$A$8:$ED$999,114,0)","v":{"$error":"#N/A"}}]
[null,null,null,null,null,"Falta de comunicación*",{"$f":"VLOOKUP($D$7,'Base Dat Mod III'!$A$8:$ED$999,115,0)","v":{"$error":"#N/A"}}]
[null,null,null,null,null,"Permitir que otras personas ajenas al núcleo familiar opinen sobre la dinámica familiar*",{"$f":"VLOOKUP($D$7,'Base Dat Mod III'!$A$8:$ED$999,116,0)","v":{"$error":"#N/A"}}]
[null,null,null,null,null,"Manejo de tiempo y reponsabilidades*",{"$f":"VLOOKUP($D$7,'Base Dat Mod III'!$A$8:$ED$999,117,0)","v":{"$error":"#N/A"}}]
[null,null,null,null,null,"Abandono*",{"$f":"VLOOKUP($D$7,'Base Dat Mod III'!$A$8:$ED$999,118,0)","v":{"$error":"#N/A"}}]
[null,null,null,null,null,"Otro, ¿cual?",{"$f":"VLOOKUP($D$7,'Base Dat Mod III'!$A$8:$ED$999,119,0)","v":{"$error":"#N/A"}}]
[null,null,null,null,null,"¿COMO SE SOLUCIONAN LOS PROBLEMAS DENTRO DEL NUCLEO FAMILIAR?"]
[null,null,null,null,null,"Dialogando*",{"$f":"VLOOKUP($D$7,'Base Dat Mod III'!$A$8:$ED$999,120,0)","v":{"$error":"#N/A"}}]
[null,null,null,null,null,"Con agresión física*",{"$f":"VLOOKUP($D$7,'Base Dat Mod III'!$A$8:$ED$999,121,0)","v":{"$error":"#N/A"}}]
[null,null,null,null,null,"Indiferencia*",{"$f":"VLOOKUP($D$7,'Base Dat Mod III'!$A$8:$ED$999,122,0)","v":{"$error":"#N/A"}}]
[null,null,null,null,null,"Con agresión verbal*",{"$f":"VLOOKUP($D$7,'Base Dat Mod III'!$A$8:$ED$999,123,0)","v":{"$error":"#N/A"}}]
[null,null,null,null,null,"Otras personas ajenas al nucleo familiar se involucran para dar solución*",{"$f":"VLOOKUP($D$7,'Base Dat Mod III'!$A$8:$ED$999,124,0)","v":{"$error":"#N/A"}}]
[null,null,null,null,null,"No se solucionan*",{"$f":"VLOOKUP($D$7,'Base Dat Mod III'!$A$8:$ED$999,125,0)","v":{"$error":"#N/A"}}]
[null,null,null,null,null,"LOS ADULTOS QUE CONFORMAN EL NUCLEO FAMILIAR PERMITEN QUE LAS NIÑAS O LOS NIÑOS PARTICIPEN EN ALGUNA DE LAS SIGUIENTES ACTIVIDADES DEL HOGAR"]
[null,null,null,null,null,"Recoger sus juguetes*",{"$f":"VLOOKUP($D$7,'Base Dat Mod III'!$A$8:$ED$999,126,0)","v":{"$error":"#N/A"}}]
[null,null,null,null,null,"Organización de espacios de la vivienda*",{"$f":"VLOOKUP($D$7,'Base Dat Mod III'!$A$8:$ED$999,127,0)","v":{"$error":"#N/A"}}]
[null,null,null,null,null,"Otras rutinas de aseo e higiene*",{"$f":"VLOOKUP($D$7,'Base Dat Mod III'!$A$8:$ED$999,128,0)","v":{"$error":"#N/A"}}]
[null,null,null,null,null,"Cuidado de mascotas*",{"$f":"VLOOKUP($D$7,'Base Dat Mod III'!$A$8:$ED$999,129,0)","v":{"$error":"#N/A"}}]
[null,null,null,null,null,"Otro, ¿cual?",{"$f":"VLOOKUP($D$7,'Base Dat Mod III'!$A$8:$ED$999,130,0)","v":{"$error":"#N/A"}}]
[null,null,null,null,null,"¿QUE TIPO DE RECONOCIMIENTOS O INCENTIVOS SE LE DAN A LAS NIÑAS O LOS NIÑOS MENORES DE CINCO (5) AÑOS POR SUS LOGROS?"]
[null,null,null,null,null,"Le da un regalo*",{"$f":"VLOOKUP($D$7,'Base Dat Mod III'!$A$8:$ED$999,131,0)","v":{"$error":"#N/A"}}]
[null,null,null,null,null,"Lo dejan salir a jugar*",{"$f":"VLOOKUP($D$7,'Base Dat Mod III'!$A$8:$ED$999,132,0)","v":{"$error":"#N/A"}}]
[null,null,null,null,null,"Lo felicitan verbalmente*",{"$f":"VLOOKUP($D$7,'Base Dat Mod III'!$A$8:$ED$999,133,0)","v":{"$error":"#N/A"}}]
[null,null,null,null,null,"No realiza ninguna acción*",{"$f":"VLOOKUP($D$7,'Base Dat Mod III'!$A$8:$ED$999,134,0)","v":{"$error":"#N/A"}}]

{"sheet":"Consulta Mod II","index":9,"n_rows":57,"n_cols":5,"rows_kept":57,"cut":false,"hidden":false,"merged":[[33,1,33,4],[29,1,29,4],[1,1,4,4],[41,1,41,3],[42,1,42,3],[6,1,6,3],[8,1,8,4],[9,1,9,3],[10,1,10,4],[31,3,31,4],[20,1,20,3],[21,1,21,3],[22,1,22,3],[24,1,24,2],[39,3,39,4],[53,1,53,3],[54,1,54,3],[55,1,55,3],[56,1,56,3],[52,1,52,3],[43,1,43,3],[50,1,50,3],[45,1,45,4],[46,1,46,3],[47,1,47,3],[48,1,48,3],[49,1,49,3]]}
[]
[]
[]
[]
[]
[]
[null,"Diligenciar el documento de identidad"]
[]
[null,"MODULO II"]
[null,"Fecha de diligenciamiento Inicial ",null,null,{"$f":"VLOOKUP($E$7,'Base Dat Mod II'!$A$11:$AK$993,2,0)","v":{"$error":"#N/A"}}]
[null,"INFORMACIÓN DE LA USUARIA"]
[null,"Nombre de la Unidad de Servicio-UDS (a la que asiste la usuaria)*",{"$f":"VLOOKUP($E$7,'Base Dat Mod II'!$A$11:$AK$993,3,0)","v":{"$error":"#N/A"}}]
[null,"Codigo de la UDS en Cuentame*",{"$f":"VLOOKUP($E$7,'Base Dat Mod II'!$A$11:$AK$993,4,0)","v":{"$error":"#N/A"}}]
[null,"Servicio Prestado en la UDS*",{"$f":"VLOOKUP($E$7,'Base Dat Mod II'!$A$11:$AK$993,5,0)","v":{"$error":"#N/A"}}]
[null,"Primer Nombre*",{"$f":"VLOOKUP($E$7,'Base Dat Mod II'!$A$11:$AK$993,6,0)","v":{"$error":"#N/A"}}]
[null,"Segundo Nombre",{"$f":"VLOOKUP($E$7,'Base Dat Mod II'!$A$11:$AK$993,7,0)","v":{"$error":"#N/A"}}]
[null,"Primer Apellido*",{"$f":"VLOOKUP($E$7,'Base Dat Mod II'!$A$11:$AK$993,8,0)","v":{"$error":"#N/A"}}]
[null,"Segundo Apellido",{"$f":"VLOOKUP($E$7,'Base Dat Mod II'!$A$11:$AK$993,9,0)","v":{"$error":"#N/A"}}]
[null,"Tipo de Documento de Identidad*",{"$f":"VLOOKUP($E$7,'Base Dat Mod II'!$A$11:$AK$993,10,0)","v":{"$error":"#N/A"}}]
[]
[null,"Grupo étnico con el que se autoreconoce la usuaria*",null,null,{"$f":"VLOOKUP($E$7,'Base Dat Mod II'!$A$11:$AK$993,11,0)","v":{"$error":"#N/A"}}]
[null,"Indique a que comunidad, resguardo o territorio colectivo pertenece*",null,null,{"$f":"VLOOKUP($E$7,'Base Dat Mod II'!$A$11:$AK$993,12,0)","v":{"$error":"#N/A"}}]
[null,"¿La beneficiaria habla la lengua nativa del grupo étnico al que pertenece?*",null,null,{"$f":"VLOOKUP($E$7,'Base Dat Mod II'!$A$11:$AK$993,13,0)","v":{"$error":"#N/A"}}]
[]
[null,"Datos de contacto en caso de emergencia"]
[null,"Nombres y apellidos*",{"$f":"VLOOKUP($E$7,'Base Dat Mod II'!$A$11:$AK$993,14,0)","v":{"$error":"#N/A"}}]
[null,"Parentesco*",{"$f":"VLOOKUP($E$7,'Base Dat Mod II'!$A$11:$AK$993,15,0)","v":{"$error":"#N/A"}}]
[null,"Numero de contacto* ",{"$f":"VLOOKUP($E$7,'Base Dat Mod II'!$A$11:$AK$993,16,0)","v":{"$error":"#N/A"}}]
[]
[null,"MUJER GESTANTE"]
[null,"¿Es su primer hijo?*",{"$f":"VLOOKUP($E$7,'Base Dat Mod II'!$A$11:$AK$993,17,0)","v":{"$error":"#N/A"}}]
[null,"¿Cuántos hijos nacidos vivos ha tenido?*",{"$f":"VLOOKUP($E$7,'Base Dat Mod II'!$A$11:$AK$993,18,0)","v":{"$error":"#N/A"}}]
[]
[null,"ACTUALMENTE TIENE DENTRO DE SUS HABITOS EL USO Y/O CONSUMO:"]
[null,"Cigarrillo*",{"$f":"VLOOKUP($E$7,'Base Dat Mod II'!$A$11:$AK$993,19,0)","v":{"$error":"#N/A"}}]
[null,"Bebidas Alcoholicas*",{"$f":"VLOOKUP($E$7,'Base Dat Mod II'!$A$11:$AK$993,20,0)","v":{"$error":"#N/A"}}]
[null,"Medicamentos con prescripción médica*",{"$f":"VLOOKUP($E$7,'Base Dat Mod II'!$A$11:$AK$993,21,0)","v":{"$error":"#N/A"}}]
[null,"Medicamentos sin prescripción médica*",{"$f":"VLOOKUP($E$7,'Base Dat Mod II'!$A$11:$AK$993,22,0)","v":{"$error":"#N/A"}}]
[null,"Sustancias psicoactivas*",{"$f":"VLOOKUP($E$7,'Base Dat Mod II'!$A$11:$AK$993,23,0)","v":{"$error":"#N/A"}}]
[null,"Otro (cuál)*",{"$f":"VLOOKUP($E$7,'Base Dat Mod II'!$A$11:$AK$993,24,0)","v":{"$error":"#N/A"}}]
[]
[null,"Numero de semanas de gestación a la fecha de ingreso al servicio*",null,null,{"$f":"VLOOKUP($E$7,'Base Dat Mod II'!$A$11:$AK$993,25,0)","v":{"$error":"#N/A"}}]
[null,"¿Ha asistido a controles prenatales?*",null,null,{"$f":"VLOOKUP($E$7,'Base Dat Mod II'!$A$11:$AK$993,26,0)","v":{"$error":"#N/A"}}]
[null,"En caso de no haber asistido a los controles prenatales, explique el motivo*",null,null,{"$f":"VLOOKUP($E$7,'Base Dat Mod II'!$A$11:$AK$993,27,0)","v":{"$error":"#N/A"}}]
[]
[null,"DURANTE EL PERIODO DE GESTACIÓN USTED HA RECIBIDO CAPACITACIÓN EN:"]
[null,"Prevención  y riesgos en salud*",null,null,{"$f":"VLOOKUP($E$7,'Base Dat Mod II'!$A$11:$AK$993,28,0)","v":{"$error":"#N/A"}}]
[null,"Fortalecimiento de los vínculos afectivos*",null,null,{"$f":"VLOOKUP($E$7,'Base Dat Mod II'!$A$11:$AK$993,29,0)","v":{"$error":"#N/A"}}]
[null,"Promoción del desarrollo infantil*",null,null,{"$f":"VLOOKUP($E$7,'Base Dat Mod II'!$A$11:$AK$993,30,0)","v":{"$error":"#N/A"}}]
[null,"Nutrición y Lactancia Materna*",null,null,{"$f":"VLOOKUP($E$7,'Base Dat Mod II'!$A$11:$AK$993,31,0)","v":{"$error":"#N/A"}}]
[null,"Otro, ¿Cuál?",null,null,{"$f":"VLOOKUP($E$7,'Base Dat Mod II'!$A$11:$AK$993,32,0)","v":{"$error":"#N/A"}}]
[]
[null,"Durante la gestación ¿ Le han aplicado las vacunas de TOXOIDE TETANICO y DIFTERICO?*",null,null,{"$f":"VLOOKUP($E$7,'Base Dat Mod II'!$A$11:$AK$993,33,0)","v":{"$error":"#N/A"}}]
[null,"¿Le han recetado sumplementos nutricionales durante la gestación? Si es así, ¿cuáles?*",null,null,{"$f":"VLOOKUP($E$7,'Base Dat Mod II'!$A$11:$AK$993,34,0)","v":{"$error":"#N/A"}}]
[null,"¿La gestante se encuentra participando del curso psicoprofiláctico?*",null,null,{"$f":"VLOOKUP($E$7,'Base Dat Mod II'!$A$11:$AK$993,35,0)","v":{"$error":"#N/A"}}]
[null,"Estado civil *",null,null,{"$f":"VLOOKUP($E$7,'Base Dat Mod II'!$A$11:$AK$993,36,0)","v":{"$error":"#N/A"}}]
[null,"¿Se encuentra trabajando?*",null,null,{"$f":"VLOOKUP($E$7,'Base Dat Mod II'!$A$11:$AK$993,37,0)","v":{"$error":"#N/A"}}]

{"sheet":"Graficos Mod I y III","index":10,"n_rows":15,"n_cols":11,"rows_kept":15,"cut":false,"hidden":false,"merged":[[8,0,8,7],[8,9,8,16]]}
[]
[]
[]
[]
[]
[]
[]
[]
["Modulo I",null,null,null,null,null,null,null,null,"Modulo III"]
[]
[]
["Etiquetas de fila","Cuenta de Primer Nombre",null,null,null,null,null,null,null,"Etiquetas de fila","Cuenta de Tipo de tenencia de la vivienda"]
["(en blanco)",null,null,null,null,null,null,null,null,"(en blanco)"]
["(en blanco)",null,null,null,null,null,null,null,null,"(en blanco)"]
["Total general",null,null,null,null,null,null,null,null,"Total general"]

{"sheet":"Graficos Mod II","index":11,"n_rows":18,"n_cols":3,"rows_kept":18,"cut":false,"hidden":false,"merged":[]}
[]
[]
[]
[]
[]
[]
[]
[]
[]
[]
[]
[]
[]
["Cuenta de Estado civil *","Asistencia a controles"]
["Estado Civil","(en blanco)","Total general"]
["(en blanco)"]
["(en blanco)"]
["Total general"]